{"text_format":"1","workbook":"xlsx","n_sheets":5,"sheets":["Company Details","Sites to be audited","Single Ingredients","Mixtures","Menu"],"not_rendered":{"charts":0,"images":2,"macros":1,"external_links":0,"defined_names":11,"comments":0,"pivot_tables":0},"unopened":[],"bounds":{"document_bytes":16777216,"sheet_cells":100000,"rows_first":2000,"rows_last":500,"rows_between":2000,"halvings":0,"cell_chars":16384,"cell_head_chars":4096},"cells_cut":0,"cells_raw":0,"read":"whole","date_system":"1900"}

{"sheet":"Company Details","index":0,"n_rows":37,"n_cols":4,"rows_kept":37,"cut":false,"hidden":false,"merged":[[30,0,32,0],[30,1,32,4],[34,0,36,0],[34,1,35,2],[34,3,35,4],[36,1,36,2],[36,3,36,4],[25,0,26,0],[15,1,15,4],[16,0,16,4],[21,0,21,4],[24,0,24,4],[12,0,12,4],[19,0,20,0],[17,1,17,4],[18,0,18,4],[22,0,23,0],[8,0,8,4],[0,1,0,4],[28,1,28,4],[29,0,29,4],[27,0,27,4],[10,0,10,4],[1,1,1,4],[4,0,4,4],[5,1,5,4],[6,0,6,4],[3,1,3,4],[7,1,7,4],[9,1,9,4],[13,1,13,4],[14,0,14,4],[11,1,11,4]]}
[null," APPROVAL LETTER\nCOMPANY DETAILS "]
["FAMI-QS Registration Number "]
[]
["Date of Issue"]
[]
["Company Name"]
[]
["Address"]
[]
["Zip Code"]
[]
["City"]
[]
["State/Province"]
[]
["Country"]
[]
["V.A.T."]
[]
["Quality Assurance Department","Title",null,"Email"]
[null,"Contact Person",null,"Phone number"]
[]
["Crisis Management","Title",null,"Email"]
[null,"Contact Person",null,"Phone number"]
[]
["Invoicing Management","Title",null,"Email"]
[null,"Contact Person",null,"Phone number"]
[]
["Newsletter"]
[]
["Do you use a consultancy service for the implementation of the FAMI-QS system?"]
[]
[]
[]
["If yes, please provide a company name and contact details:","Company name"]
[]
[null,"Email Address"]

{"sheet":"Sites to be audited","index":1,"n_rows":3,"n_cols":7,"rows_kept":3,"cut":false,"hidden":false,"merged":[[0,1,0,6]]}
[null,"SITES TO BE AUDITED \nThe address shown on the invoice to your customers shall be part of the FAMI-QS Certificate . Please check § 11.5 invoicing Address/Registration Address of Rules for operators."]
["FAMI-QS Site registration number","Site Name","Address","Zip Code","City","State / Province","Country"]
[0,{"$f":"'Company Details'!B6:E6","v":0},{"$f":"'Company Details'!B8:E8","v":0}]

{"sheet":"Single Ingredients","index":2,"n_rows":132,"n_cols":8,"rows_kept":132,"cut":false,"hidden":false,"merged":[[0,1,0,7]]}
[null,"TABLE TO BE COMPLETED ONLY FOR SINGLE INGREDIENTS"]
["Site number","Substance name","Activity","Production Process","Does it cover basic nutrition ?","orange","other D3","FAMI-QS conclusion"]
[null,null,null,null,null,{"$f":"IF(OR(COUNTIF(B3,\"\"),COUNTIF(A3,\"\"),COUNTIF(C3,\"\"),COUNTIF(D3,\"\"),COUNTIF(E3,\"\")),\"Please complete the cells in orange\",\"\")","v":"Please complete the cells in orange"},{"$f":"IF(ISERROR(SEARCH(\"*Other*\",D3)),\"\",\"other\")","v":""},{"$f":"IF(Tableau2[[#This Row],[orange]]=orange,orange,IF(ISERROR(SEARCH(\"*Other*\",D3)),IF(Tableau2[[#This Row],[Does it cover basic nutrition ?]]=\"Yes\",\"Further evaluation by FAMI-QS\",IF(Tableau2[[#This Row],[Does it cover basic nutrition ?]]=\"No\",\"Accepted\",orange)),IF(Tableau2[[#This Row],[Does it cover basic nutrition ?]]=\"Yes\",\"Further evaluation by FAMI-QS\",IF(Tableau2[[#This Row],[Does it cover basic nutrition ?]]=\"No\",\"Further evaluation by FAMIQS\",orange))))","v":"Please complete the cells in orange"}]
[null,null,null,null,null,"Please complete the cells in orange","",{"$f":"IF(Tableau2[[#This Row],[orange]]=orange,orange,IF(ISERROR(SEARCH(\"*Other*\",D4)),IF(Tableau2[[#This Row],[Does it cover basic nutrition ?]]=\"Yes\",\"Further evaluation by FAMI-QS\",IF(Tableau2[[#This Row],[Does it cover basic nutrition ?]]=\"No\",\"Accepted\",orange)),IF(Tableau2[[#This Row],[Does it cover basic nutrition ?]]=\"Yes\",\"Further evaluation by FAMI-QS\",IF(Tableau2[[#This Row],[Does it cover basic nutrition ?]]=\"No\",\"Further evaluation by FAMIQS\",orange))))","v":"Please complete the cells in orange"}]
[null,null,null,null,null,"Please complete the cells in orange","",{"$f":"IF(Tableau2[[#This Row],[orange]]=orange,orange,IF(ISERROR(SEARCH(\"*Other*\",D5)),IF(Tableau2[[#This Row],[Does it cover basic nutrition ?]]=\"Yes\",\"Further evaluation by FAMI-QS\",IF(Tableau2[[#This Row],[Does it cover basic nutrition ?]]=\"No\",\"Accepted\",orange)),IF(Tableau2[[#This Row],[Does it cover basic nutrition ?]]=\"Yes\",\"Further evaluation by FAMI-QS\",IF(Tableau2[[#This Row],[Does it cover basic nutrition ?]]=\"No\",\"Further evaluation by FAMIQS\",orange))))","v":"Please complete the cells in orange"}]
[null,null,null,null,null,"Please complete the cells in orange","",{"$f":"IF(Tableau2[[#This Row],[orange]]=orange,orange,IF(ISERROR(SEARCH(\"*Other*\",D6)),IF(Tableau2[[#This Row],[Does it cover basic nutrition ?]]=\"Yes\",\"Further evaluation by FAMI-QS\",IF(Tableau2[[#This Row],[Does it cover basic nutrition ?]]=\"No\",\"Accepted\",orange)),IF(Tableau2[[#This Row],[Does it cover basic nutrition ?]]=\"Yes\",\"Further evaluation by FAMI-QS\",IF(Tableau2[[#This Row],[Does it cover basic nutrition ?]]=\"No\",\"Further evaluation by FAMIQS\",orange))))","v":"Please complete the cells in orange"}]
[null,null,null,null,null,"Please complete the cells in orange","",{"$f":"IF(Tableau2[[#This Row],[orange]]=orange,orange,IF(ISERROR(SEARCH(\"*Other*\",D7)),IF(Tableau2[[#This Row],[Does it cover basic nutrition ?]]=\"Yes\",\"Further evaluation by FAMI-QS\",IF(Tableau2[[#This Row],[Does it cover basic nutrition ?]]=\"No\",\"Accepted\",orange)),IF(Tableau2[[#This Row],[Does it cover basic nutrition ?]]=\"Yes\",\"Further evaluation by FAMI-QS\",IF(Tableau2[[#This Row],[Does it cover basic nutrition ?]]=\"No\",\"Further evaluation by FAMIQS\",orange))))","v":"Please complete the cells in orange"}]
[null,null,null,null,null,"Please complete the cells in orange","",{"$f":"IF(Tableau2[[#This Row],[orange]]=orange,orange,IF(ISERROR(SEARCH(\"*Other*\",D8)),IF(Tableau2[[#This Row],[Does it cover basic nutrition ?]]=\"Yes\",\"Further evaluation by FAMI-QS\",IF(Tableau2[[#This Row],[Does it cover basic nutrition ?]]=\"No\",\"Accepted\",orange)),IF(Tableau2[[#This Row],[Does it cover basic nutrition ?]]=\"Yes\",\"Further evaluation by FAMI-QS\",IF(Tableau2[[#This Row],[Does it cover basic nutrition ?]]=\"No\",\"Further evaluation by FAMIQS\",orange))))","v":"Please complete the cells in orange"}]
[null,null,null,null,null,"Please complete the cells in orange","",{"$f":"IF(Tableau2[[#This Row],[orange]]=orange,orange,IF(ISERROR(SEARCH(\"*Other*\",D9)),IF(Tableau2[[#This Row],[Does it cover basic nutrition ?]]=\"Yes\",\"Further evaluation by FAMI-QS\",IF(Tableau2[[#This Row],[Does it cover basic nutrition ?]]=\"No\",\"Accepted\",orange)),IF(Tableau2[[#This Row],[Does it cover basic nutrition ?]]=\"Yes\",\"Further evaluation by FAMI-QS\",IF(Tableau2[[#This Row],[Does it cover basic nutrition ?]]=\"No\",\"Further evaluation by FAMIQS\",orange))))","v":"Please complete the cells in orange"}]
[null,null,null,null,null,"Please complete the cells in orange","",{"$f":"IF(Tableau2[[#This Row],[orange]]=orange,orange,IF(ISERROR(SEARCH(\"*Other*\",D10)),IF(Tableau2[[#This Row],[Does it cover basic nutrition ?]]=\"Yes\",\"Further evaluation by FAMI-QS\",IF(Tableau2[[#This Row],[Does it cover basic nutrition ?]]=\"No\",\"Accepted\",orange)),IF(Tableau2[[#This Row],[Does it cover basic nutrition ?]]=\"Yes\",\"Further evaluation by FAMI-QS\",IF(Tableau2[[#This Row],[Does it cover basic nutrition ?]]=\"No\",\"Further evaluation by FAMIQS\",orange))))","v":"Please complete the cells in orange"}]
[null,null,null,null,null,"Please complete the cells in orange","",{"$f":"IF(Tableau2[[#This Row],[orange]]=orange,orange,IF(ISERROR(SEARCH(\"*Other*\",D11)),IF(Tableau2[[#This Row],[Does it cover basic nutrition ?]]=\"Yes\",\"Further evaluation by FAMI-QS\",IF(Tableau2[[#This Row],[Does it cover basic nutrition ?]]=\"No\",\"Accepted\",orange)),IF(Tableau2[[#This Row],[Does it cover basic nutrition ?]]=\"Yes\",\"Further evaluation by FAMI-QS\",IF(Tableau2[[#This Row],[Does it cover basic nutrition ?]]=\"No\",\"Further evaluation by FAMIQS\",orange))))","v":"Please complete the cells in orange"}]
[null,null,null,null,null,"Please complete the cells in orange","",{"$f":"IF(Tableau2[[#This Row],[orange]]=orange,orange,IF(ISERROR(SEARCH(\"*Other*\",D12)),IF(Tableau2[[#This Row],[Does it cover basic nutrition ?]]=\"Yes\",\"Further evaluation by FAMI-QS\",IF(Tableau2[[#This Row],[Does it cover basic nutrition ?]]=\"No\",\"Accepted\",orange)),IF(Tableau2[[#This Row],[Does it cover basic nutrition ?]]=\"Yes\",\"Further evaluation by FAMI-QS\",IF(Tableau2[[#This Row],[Does it cover basic nutrition ?]]=\"No\",\"Further evaluation by FAMIQS\",orange))))","v":"Please complete the cells in orange"}]
[null,null,null,null,null,"Please complete the cells in orange","",{"$f":"IF(Tableau2[[#This Row],[orange]]=orange,orange,IF(ISERROR(SEARCH(\"*Other*\",D13)),IF(Tableau2[[#This Row],[Does it cover basic nutrition ?]]=\"Yes\",\"Further evaluation by FAMI-QS\",IF(Tableau2[[#This Row],[Does it cover basic nutrition ?]]=\"No\",\"Accepted\",orange)),IF(Tableau2[[#This Row],[Does it cover basic nutrition ?]]=\"Yes\",\"Further evaluation by FAMI-QS\",IF(Tableau2[[#This Row],[Does it cover basic nutrition ?]]=\"No\",\"Further evaluation by FAMIQS\",orange))))","v":"Please complete the cells in orange"}]
[null,null,null,null,null,"Please complete the cells in orange","",{"$f":"IF(Tableau2[[#This Row],[orange]]=orange,orange,IF(ISERROR(SEARCH(\"*Other*\",D14)),IF(Tableau2[[#This Row],[Does it cover basic nutrition ?]]=\"Yes\",\"Further evaluation by FAMI-QS\",IF(Tableau2[[#This Row],[Does it cover basic nutrition ?]]=\"No\",\"Accepted\",orange)),IF(Tableau2[[#This Row],[Does it cover basic nutrition ?]]=\"Yes\",\"Further evaluation by FAMI-QS\",IF(Tableau2[[#This Row],[Does it cover basic nutrition ?]]=\"No\",\"Further evaluation by FAMIQS\",orange))))","v":"Please complete the cells in orange"}]
[null,null,null,null,null,"Please complete the cells in orange","",{"$f":"IF(Tableau2[[#This Row],[orange]]=orange,orange,IF(ISERROR(SEARCH(\"*Other*\",D15)),IF(Tableau2[[#This Row],[Does it cover basic nutrition ?]]=\"Yes\",\"Further evaluation by FAMI-QS\",IF(Tableau2[[#This Row],[Does it cover basic nutrition ?]]=\"No\",\"Accepted\",orange)),IF(Tableau2[[#This Row],[Does it cover basic nutrition ?]]=\"Yes\",\"Further evaluation by FAMI-QS\",IF(Tableau2[[#This Row],[Does it cover basic nutrition ?]]=\"No\",\"Further evaluation by FAMIQS\",orange))))","v":"Please complete the cells in orange"}]
[null,null,null,null,null,"Please complete the cells in orange","",{"$f":"IF(Tableau2[[#This Row],[orange]]=orange,orange,IF(ISERROR(SEARCH(\"*Other*\",D16)),IF(Tableau2[[#This Row],[Does it cover basic nutrition ?]]=\"Yes\",\"Further evaluation by FAMI-QS\",IF(Tableau2[[#This Row],[Does it cover basic nutrition ?]]=\"No\",\"Accepted\",orange)),IF(Tableau2[[#This Row],[Does it cover basic nutrition ?]]=\"Yes\",\"Further evaluation by FAMI-QS\",IF(Tableau2[[#This Row],[Does it cover basic nutrition ?]]=\"No\",\"Further evaluation by FAMIQS\",orange))))","v":"Please complete the cells in orange"}]
[null,null,null,null,null,"Please complete the cells in orange","",{"$f":"IF(Tableau2[[#This Row],[orange]]=orange,orange,IF(ISERROR(SEARCH(\"*Other*\",D17)),IF(Tableau2[[#This Row],[Does it cover basic nutrition ?]]=\"Yes\",\"Further evaluation by FAMI-QS\",IF(Tableau2[[#This Row],[Does it cover basic nutrition ?]]=\"No\",\"Accepted\",orange)),IF(Tableau2[[#This Row],[Does it cover basic nutrition ?]]=\"Yes\",\"Further evaluation by FAMI-QS\",IF(Tableau2[[#This Row],[Does it cover basic nutrition ?]]=\"No\",\"Further evaluation by FAMIQS\",orange))))","v":"Please complete the cells in orange"}]
[null,null,null,null,null,"Please complete the cells in orange","",{"$f":"IF(Tableau2[[#This Row],[orange]]=orange,orange,IF(ISERROR(SEARCH(\"*Other*\",D18)),IF(Tableau2[[#This Row],[Does it cover basic nutrition ?]]=\"Yes\",\"Further evaluation by FAMI-QS\",IF(Tableau2[[#This Row],[Does it cover basic nutrition ?]]=\"No\",\"Accepted\",orange)),IF(Tableau2[[#This Row],[Does it cover basic nutrition ?]]=\"Yes\",\"Further evaluation by FAMI-QS\",IF(Tableau2[[#This Row],[Does it cover basic nutrition ?]]=\"No\",\"Further evaluation by FAMIQS\",orange))))","v":"Please complete the cells in orange"}]
[null,null,null,null,null,"Please complete the cells in orange","",{"$f":"IF(Tableau2[[#This Row],[orange]]=orange,orange,IF(ISERROR(SEARCH(\"*Other*\",D19)),IF(Tableau2[[#This Row],[Does it cover basic nutrition ?]]=\"Yes\",\"Further evaluation by FAMI-QS\",IF(Tableau2[[#This Row],[Does it cover basic nutrition ?]]=\"No\",\"Accepted\",orange)),IF(Tableau2[[#This Row],[Does it cover basic nutrition ?]]=\"Yes\",\"Further evaluation by FAMI-QS\",IF(Tableau2[[#This Row],[Does it cover basic nutrition ?]]=\"No\",\"Further evaluation by FAMIQS\",orange))))","v":"Please complete the cells in orange"}]
[null,null,null,null,null,"Please complete the cells in orange","",{"$f":"IF(Tableau2[[#This Row],[orange]]=orange,orange,IF(ISERROR(SEARCH(\"*Other*\",D20)),IF(Tableau2[[#This Row],[Does it cover basic nutrition ?]]=\"Yes\",\"Further evaluation by FAMI-QS\",IF(Tableau2[[#This Row],[Does it cover basic nutrition ?]]=\"No\",\"Accepted\",orange)),IF(Tableau2[[#This Row],[Does it cover basic nutrition ?]]=\"Yes\",\"Further evaluation by FAMI-QS\",IF(Tableau2[[#This Row],[Does it cover basic nutrition ?]]=\"No\",\"Further evaluation by FAMIQS\",orange))))","v":"Please complete the cells in orange"}]
[null,null,null,null,null,"Please complete the cells in orange","",{"$f":"IF(Tableau2[[#This Row],[orange]]=orange,orange,IF(ISERROR(SEARCH(\"*Other*\",D21)),IF(Tableau2[[#This Row],[Does it cover basic nutrition ?]]=\"Yes\",\"Further evaluation by FAMI-QS\",IF(Tableau2[[#This Row],[Does it cover basic nutrition ?]]=\"No\",\"Accepted\",orange)),IF(Tableau2[[#This Row],[Does it cover basic nutrition ?]]=\"Yes\",\"Further evaluation by FAMI-QS\",IF(Tableau2[[#This Row],[Does it cover basic nutrition ?]]=\"No\",\"Further evaluation by FAMIQS\",orange))))","v":"Please complete the cells in orange"}]
[null,null,null,null,null,"Please complete the cells in orange","",{"$f":"IF(Tableau2[[#This Row],[orange]]=orange,orange,IF(ISERROR(SEARCH(\"*Other*\",D22)),IF(Tableau2[[#This Row],[Does it cover basic nutrition ?]]=\"Yes\",\"Further evaluation by FAMI-QS\",IF(Tableau2[[#This Row],[Does it cover basic nutrition ?]]=\"No\",\"Accepted\",orange)),IF(Tableau2[[#This Row],[Does it cover basic nutrition ?]]=\"Yes\",\"Further evaluation by FAMI-QS\",IF(Tableau2[[#This Row],[Does it cover basic nutrition ?]]=\"No\",\"Further evaluation by FAMIQS\",orange))))","v":"Please complete the cells in orange"}]
[null,null,null,null,null,"Please complete the cells in orange","",{"$f":"IF(Tableau2[[#This Row],[orange]]=orange,orange,IF(ISERROR(SEARCH(\"*Other*\",D23)),IF(Tableau2[[#This Row],[Does it cover basic nutrition ?]]=\"Yes\",\"Further evaluation by FAMI-QS\",IF(Tableau2[[#This Row],[Does it cover basic nutrition ?]]=\"No\",\"Accepted\",orange)),IF(Tableau2[[#This Row],[Does it cover basic nutrition ?]]=\"Yes\",\"Further evaluation by FAMI-QS\",IF(Tableau2[[#This Row],[Does it cover basic nutrition ?]]=\"No\",\"Further evaluation by FAMIQS\",orange))))","v":"Please complete the cells in orange"}]
[null,null,null,null,null,"Please complete the cells in orange","",{"$f":"IF(Tableau2[[#This Row],[orange]]=orange,orange,IF(ISERROR(SEARCH(\"*Other*\",D24)),IF(Tableau2[[#This Row],[Does it cover basic nutrition ?]]=\"Yes\",\"Further evaluation by FAMI-QS\",IF(Tableau2[[#This Row],[Does it cover basic nutrition ?]]=\"No\",\"Accepted\",orange)),IF(Tableau2[[#This Row],[Does it cover basic nutrition ?]]=\"Yes\",\"Further evaluation by FAMI-QS\",IF(Tableau2[[#This Row],[Does it cover basic nutrition ?]]=\"No\",\"Further evaluation by FAMIQS\",orange))))","v":"Please complete the cells in orange"}]
[null,null,null,null,null,"Please complete the cells in orange","",{"$f":"IF(Tableau2[[#This Row],[orange]]=orange,orange,IF(ISERROR(SEARCH(\"*Other*\",D25)),IF(Tableau2[[#This Row],[Does it cover basic nutrition ?]]=\"Yes\",\"Further evaluation by FAMI-QS\",IF(Tableau2[[#This Row],[Does it cover basic nutrition ?]]=\"No\",\"Accepted\",orange)),IF(Tableau2[[#This Row],[Does it cover basic nutrition ?]]=\"Yes\",\"Further evaluation by FAMI-QS\",IF(Tableau2[[#This Row],[Does it cover basic nutrition ?]]=\"No\",\"Further evaluation by FAMIQS\",orange))))","v":"Please complete the cells in orange"}]
[null,null,null,null,null,"Please complete the cells in orange","",{"$f":"IF(Tableau2[[#This Row],[orange]]=orange,orange,IF(ISERROR(SEARCH(\"*Other*\",D26)),IF(Tableau2[[#This Row],[Does it cover basic nutrition ?]]=\"Yes\",\"Further evaluation by FAMI-QS\",IF(Tableau2[[#This Row],[Does it cover basic nutrition ?]]=\"No\",\"Accepted\",orange)),IF(Tableau2[[#This Row],[Does it cover basic nutrition ?]]=\"Yes\",\"Further evaluation by FAMI-QS\",IF(Tableau2[[#This Row],[Does it cover basic nutrition ?]]=\"No\",\"Further evaluation by FAMIQS\",orange))))","v":"Please complete the cells in orange"}]
[null,null,null,null,null,"Please complete the cells in orange","",{"$f":"IF(Tableau2[[#This Row],[orange]]=orange,orange,IF(ISERROR(SEARCH(\"*Other*\",D27)),IF(Tableau2[[#This Row],[Does it cover basic nutrition ?]]=\"Yes\",\"Further evaluation by FAMI-QS\",IF(Tableau2[[#This Row],[Does it cover basic nutrition ?]]=\"No\",\"Accepted\",orange)),IF(Tableau2[[#This Row],[Does it cover basic nutrition ?]]=\"Yes\",\"Further evaluation by FAMI-QS\",IF(Tableau2[[#This Row],[Does it cover basic nutrition ?]]=\"No\",\"Further evaluation by FAMIQS\",orange))))","v":"Please complete the cells in orange"}]
[null,null,null,null,null,"Please complete the cells in orange","",{"$f":"IF(Tableau2[[#This Row],[orange]]=orange,orange,IF(ISERROR(SEARCH(\"*Other*\",D28)),IF(Tableau2[[#This Row],[Does it cover basic nutrition ?]]=\"Yes\",\"Further evaluation by FAMI-QS\",IF(Tableau2[[#This Row],[Does it cover basic nutrition ?]]=\"No\",\"Accepted\",orange)),IF(Tableau2[[#This Row],[Does it cover basic nutrition ?]]=\"Yes\",\"Further evaluation by FAMI-QS\",IF(Tableau2[[#This Row],[Does it cover basic nutrition ?]]=\"No\",\"Further evaluation by FAMIQS\",orange))))","v":"Please complete the cells in orange"}]
[null,null,null,null,null,"Please complete the cells in orange","",{"$f":"IF(Tableau2[[#This Row],[orange]]=orange,orange,IF(ISERROR(SEARCH(\"*Other*\",D29)),IF(Tableau2[[#This Row],[Does it cover basic nutrition ?]]=\"Yes\",\"Further evaluation by FAMI-QS\",IF(Tableau2[[#This Row],[Does it cover basic nutrition ?]]=\"No\",\"Accepted\",orange)),IF(Tableau2[[#This Row],[Does it cover basic nutrition ?]]=\"Yes\",\"Further evaluation by FAMI-QS\",IF(Tableau2[[#This Row],[Does it cover basic nutrition ?]]=\"No\",\"Further evaluation by FAMIQS\",orange))))","v":"Please complete the cells in orange"}]
[null,null,null,null,null,"Please complete the cells in orange","",{"$f":"IF(Tableau2[[#This Row],[orange]]=orange,orange,IF(ISERROR(SEARCH(\"*Other*\",D30)),IF(Tableau2[[#This Row],[Does it cover basic nutrition ?]]=\"Yes\",\"Further evaluation by FAMI-QS\",IF(Tableau2[[#This Row],[Does it cover basic nutrition ?]]=\"No\",\"Accepted\",orange)),IF(Tableau2[[#This Row],[Does it cover basic nutrition ?]]=\"Yes\",\"Further evaluation by FAMI-QS\",IF(Tableau2[[#This Row],[Does it cover basic nutrition ?]]=\"No\",\"Further evaluation by FAMIQS\",orange))))","v":"Please complete the cells in orange"}]
[null,null,null,null,null,"Please complete the cells in orange","",{"$f":"IF(Tableau2[[#This Row],[orange]]=orange,orange,IF(ISERROR(SEARCH(\"*Other*\",D31)),IF(Tableau2[[#This Row],[Does it cover basic nutrition ?]]=\"Yes\",\"Further evaluation by FAMI-QS\",IF(Tableau2[[#This Row],[Does it cover basic nutrition ?]]=\"No\",\"Accepted\",orange)),IF(Tableau2[[#This Row],[Does it cover basic nutrition ?]]=\"Yes\",\"Further evaluation by FAMI-QS\",IF(Tableau2[[#This Row],[Does it cover basic nutrition ?]]=\"No\",\"Further evaluation by FAMIQS\",orange))))","v":"Please complete the cells in orange"}]
[null,null,null,null,null,"Please complete the cells in orange","",{"$f":"IF(Tableau2[[#This Row],[orange]]=orange,orange,IF(ISERROR(SEARCH(\"*Other*\",D32)),IF(Tableau2[[#This Row],[Does it cover basic nutrition ?]]=\"Yes\",\"Further evaluation by FAMI-QS\",IF(Tableau2[[#This Row],[Does it cover basic nutrition ?]]=\"No\",\"Accepted\",orange)),IF(Tableau2[[#This Row],[Does it cover basic nutrition ?]]=\"Yes\",\"Further evaluation by FAMI-QS\",IF(Tableau2[[#This Row],[Does it cover basic nutrition ?]]=\"No\",\"Further evaluation by FAMIQS\",orange))))","v":"Please complete the cells in orange"}]
[null,null,null,null,null,"Please complete the cells in orange","",{"$f":"IF(Tableau2[[#This Row],[orange]]=orange,orange,IF(ISERROR(SEARCH(\"*Other*\",D33)),IF(Tableau2[[#This Row],[Does it cover basic nutrition ?]]=\"Yes\",\"Further evaluation by FAMI-QS\",IF(Tableau2[[#This Row],[Does it cover basic nutrition ?]]=\"No\",\"Accepted\",orange)),IF(Tableau2[[#This Row],[Does it cover basic nutrition ?]]=\"Yes\",\"Further evaluation by FAMI-QS\",IF(Tableau2[[#This Row],[Does it cover basic nutrition ?]]=\"No\",\"Further evaluation by FAMIQS\",orange))))","v":"Please complete the cells in orange"}]
[null,null,null,null,null,"Please complete the cells in orange","",{"$f":"IF(Tableau2[[#This Row],[orange]]=orange,orange,IF(ISERROR(SEARCH(\"*Other*\",D34)),IF(Tableau2[[#This Row],[Does it cover basic nutrition ?]]=\"Yes\",\"Further evaluation by FAMI-QS\",IF(Tableau2[[#This Row],[Does it cover basic nutrition ?]]=\"No\",\"Accepted\",orange)),IF(Tableau2[[#This Row],[Does it cover basic nutrition ?]]=\"Yes\",\"Further evaluation by FAMI-QS\",IF(Tableau2[[#This Row],[Does it cover basic nutrition ?]]=\"No\",\"Further evaluation by FAMIQS\",orange))))","v":"Please complete the cells in orange"}]
[null,null,null,null,null,{"$f":"IF(OR(COUNTIF(B35,\"\"),COUNTIF(A35,\"\"),COUNTIF(C35,\"\"),COUNTIF(D35,\"\"),COUNTIF(E35,\"\")),\"Please complete the cells in orange\",\"\")","v":"Please complete the cells in orange"},{"$f":"IF(ISERROR(SEARCH(\"*Other*\",D35)),\"\",\"other\")","v":""},{"$f":"IF(Tableau2[[#This Row],[orange]]=orange,orange,IF(ISERROR(SEARCH(\"*Other*\",D35)),IF(Tableau2[[#This Row],[Does it cover basic nutrition ?]]=\"Yes\",\"Further evaluation by FAMI-QS\",IF(Tableau2[[#This Row],[Does it cover basic nutrition ?]]=\"No\",\"Accepted\",orange)),IF(Tableau2[[#This Row],[Does it cover basic nutrition ?]]=\"Yes\",\"Further evaluation by FAMI-QS\",IF(Tableau2[[#This Row],[Does it cover basic nutrition ?]]=\"No\",\"Further evaluation by FAMIQS\",orange))))","v":"Please complete the cells in orange"}]
[null,null,null,null,null,"Please complete the cells in orange","",{"$f":"IF(Tableau2[[#This Row],[orange]]=orange,orange,IF(ISERROR(SEARCH(\"*Other*\",D36)),IF(Tableau2[[#This Row],[Does it cover basic nutrition ?]]=\"Yes\",\"Further evaluation by FAMI-QS\",IF(Tableau2[[#This Row],[Does it cover basic nutrition ?]]=\"No\",\"Accepted\",orange)),IF(Tableau2[[#This Row],[Does it cover basic nutrition ?]]=\"Yes\",\"Further evaluation by FAMI-QS\",IF(Tableau2[[#This Row],[Does it cover basic nutrition ?]]=\"No\",\"Further evaluation by FAMIQS\",orange))))","v":"Please complete the cells in orange"}]
[null,null,null,null,null,"Please complete the cells in orange","",{"$f":"IF(Tableau2[[#This Row],[orange]]=orange,orange,IF(ISERROR(SEARCH(\"*Other*\",D37)),IF(Tableau2[[#This Row],[Does it cover basic nutrition ?]]=\"Yes\",\"Further evaluation by FAMI-QS\",IF(Tableau2[[#This Row],[Does it cover basic nutrition ?]]=\"No\",\"Accepted\",orange)),IF(Tableau2[[#This Row],[Does it cover basic nutrition ?]]=\"Yes\",\"Further evaluation by FAMI-QS\",IF(Tableau2[[#This Row],[Does it cover basic nutrition ?]]=\"No\",\"Further evaluation by FAMIQS\",orange))))","v":"Please complete the cells in orange"}]
[null,null,null,null,null,"Please complete the cells in orange","",{"$f":"IF(Tableau2[[#This Row],[orange]]=orange,orange,IF(ISERROR(SEARCH(\"*Other*\",D38)),IF(Tableau2[[#This Row],[Does it cover basic nutrition ?]]=\"Yes\",\"Further evaluation by FAMI-QS\",IF(Tableau2[[#This Row],[Does it cover basic nutrition ?]]=\"No\",\"Accepted\",orange)),IF(Tableau2[[#This Row],[Does it cover basic nutrition ?]]=\"Yes\",\"Further evaluation by FAMI-QS\",IF(Tableau2[[#This Row],[Does it cover basic nutrition ?]]=\"No\",\"Further evaluation by FAMIQS\",orange))))","v":"Please complete the cells in orange"}]
[null,null,null,null,null,"Please complete the cells in orange","",{"$f":"IF(Tableau2[[#This Row],[orange]]=orange,orange,IF(ISERROR(SEARCH(\"*Other*\",D39)),IF(Tableau2[[#This Row],[Does it cover basic nutrition ?]]=\"Yes\",\"Further evaluation by FAMI-QS\",IF(Tableau2[[#This Row],[Does it cover basic nutrition ?]]=\"No\",\"Accepted\",orange)),IF(Tableau2[[#This Row],[Does it cover basic nutrition ?]]=\"Yes\",\"Further evaluation by FAMI-QS\",IF(Tableau2[[#This Row],[Does it cover basic nutrition ?]]=\"No\",\"Further evaluation by FAMIQS\",orange))))","v":"Please complete the cells in orange"}]
[null,null,null,null,null,"Please complete the cells in orange","",{"$f":"IF(Tableau2[[#This Row],[orange]]=orange,orange,IF(ISERROR(SEARCH(\"*Other*\",D40)),IF(Tableau2[[#This Row],[Does it cover basic nutrition ?]]=\"Yes\",\"Further evaluation by FAMI-QS\",IF(Tableau2[[#This Row],[Does it cover basic nutrition ?]]=\"No\",\"Accepted\",orange)),IF(Tableau2[[#This Row],[Does it cover basic nutrition ?]]=\"Yes\",\"Further evaluation by FAMI-QS\",IF(Tableau2[[#This Row],[Does it cover basic nutrition ?]]=\"No\",\"Further evaluation by FAMIQS\",orange))))","v":"Please complete the cells in orange"}]
[null,null,null,null,null,"Please complete the cells in orange","",{"$f":"IF(Tableau2[[#This Row],[orange]]=orange,orange,IF(ISERROR(SEARCH(\"*Other*\",D41)),IF(Tableau2[[#This Row],[Does it cover basic nutrition ?]]=\"Yes\",\"Further evaluation by FAMI-QS\",IF(Tableau2[[#This Row],[Does it cover basic nutrition ?]]=\"No\",\"Accepted\",orange)),IF(Tableau2[[#This Row],[Does it cover basic nutrition ?]]=\"Yes\",\"Further evaluation by FAMI-QS\",IF(Tableau2[[#This Row],[Does it cover basic nutrition ?]]=\"No\",\"Further evaluation by FAMIQS\",orange))))","v":"Please complete the cells in orange"}]
[null,null,null,null,null,"Please complete the cells in orange","",{"$f":"IF(Tableau2[[#This Row],[orange]]=orange,orange,IF(ISERROR(SEARCH(\"*Other*\",D42)),IF(Tableau2[[#This Row],[Does it cover basic nutrition ?]]=\"Yes\",\"Further evaluation by FAMI-QS\",IF(Tableau2[[#This Row],[Does it cover basic nutrition ?]]=\"No\",\"Accepted\",orange)),IF(Tableau2[[#This Row],[Does it cover basic nutrition ?]]=\"Yes\",\"Further evaluation by FAMI-QS\",IF(Tableau2[[#This Row],[Does it cover basic nutrition ?]]=\"No\",\"Further evaluation by FAMIQS\",orange))))","v":"Please complete the cells in orange"}]
[null,null,null,null,null,"Please complete the cells in orange","",{"$f":"IF(Tableau2[[#This Row],[orange]]=orange,orange,IF(ISERROR(SEARCH(\"*Other*\",D43)),IF(Tableau2[[#This Row],[Does it cover basic nutrition ?]]=\"Yes\",\"Further evaluation by FAMI-QS\",IF(Tableau2[[#This Row],[Does it cover basic nutrition ?]]=\"No\",\"Accepted\",orange)),IF(Tableau2[[#This Row],[Does it cover basic nutrition ?]]=\"Yes\",\"Further evaluation by FAMI-QS\",IF(Tableau2[[#This Row],[Does it cover basic nutrition ?]]=\"No\",\"Further evaluation by FAMIQS\",orange))))","v":"Please complete the cells in orange"}]
[null,null,null,null,null,"Please complete the cells in orange","",{"$f":"IF(Tableau2[[#This Row],[orange]]=orange,orange,IF(ISERROR(SEARCH(\"*Other*\",D44)),IF(Tableau2[[#This Row],[Does it cover basic nutrition ?]]=\"Yes\",\"Further evaluation by FAMI-QS\",IF(Tableau2[[#This Row],[Does it cover basic nutrition ?]]=\"No\",\"Accepted\",orange)),IF(Tableau2[[#This Row],[Does it cover basic nutrition ?]]=\"Yes\",\"Further evaluation by FAMI-QS\",IF(Tableau2[[#This Row],[Does it cover basic nutrition ?]]=\"No\",\"Further evaluation by FAMIQS\",orange))))","v":"Please complete the cells in orange"}]
[null,null,null,null,null,"Please complete the cells in orange","",{"$f":"IF(Tableau2[[#This Row],[orange]]=orange,orange,IF(ISERROR(SEARCH(\"*Other*\",D45)),IF(Tableau2[[#This Row],[Does it cover basic nutrition ?]]=\"Yes\",\"Further evaluation by FAMI-QS\",IF(Tableau2[[#This Row],[Does it cover basic nutrition ?]]=\"No\",\"Accepted\",orange)),IF(Tableau2[[#This Row],[Does it cover basic nutrition ?]]=\"Yes\",\"Further evaluation by FAMI-QS\",IF(Tableau2[[#This Row],[Does it cover basic nutrition ?]]=\"No\",\"Further evaluation by FAMIQS\",orange))))","v":"Please complete the cells in orange"}]
[null,null,null,null,null,"Please complete the cells in orange","",{"$f":"IF(Tableau2[[#This Row],[orange]]=orange,orange,IF(ISERROR(SEARCH(\"*Other*\",D46)),IF(Tableau2[[#This Row],[Does it cover basic nutrition ?]]=\"Yes\",\"Further evaluation by FAMI-QS\",IF(Tableau2[[#This Row],[Does it cover basic nutrition ?]]=\"No\",\"Accepted\",orange)),IF(Tableau2[[#This Row],[Does it cover basic nutrition ?]]=\"Yes\",\"Further evaluation by FAMI-QS\",IF(Tableau2[[#This Row],[Does it cover basic nutrition ?]]=\"No\",\"Further evaluation by FAMIQS\",orange))))","v":"Please complete the cells in orange"}]
[null,null,null,null,null,"Please complete the cells in orange","",{"$f":"IF(Tableau2[[#This Row],[orange]]=orange,orange,IF(ISERROR(SEARCH(\"*Other*\",D47)),IF(Tableau2[[#This Row],[Does it cover basic nutrition ?]]=\"Yes\",\"Further evaluation by FAMI-QS\",IF(Tableau2[[#This Row],[Does it cover basic nutrition ?]]=\"No\",\"Accepted\",orange)),IF(Tableau2[[#This Row],[Does it cover basic nutrition ?]]=\"Yes\",\"Further evaluation by FAMI-QS\",IF(Tableau2[[#This Row],[Does it cover basic nutrition ?]]=\"No\",\"Further evaluation by FAMIQS\",orange))))","v":"Please complete the cells in orange"}]
[null,null,null,null,null,"Please complete the cells in orange","",{"$f":"IF(Tableau2[[#This Row],[orange]]=orange,orange,IF(ISERROR(SEARCH(\"*Other*\",D48)),IF(Tableau2[[#This Row],[Does it cover basic nutrition ?]]=\"Yes\",\"Further evaluation by FAMI-QS\",IF(Tableau2[[#This Row],[Does it cover basic nutrition ?]]=\"No\",\"Accepted\",orange)),IF(Tableau2[[#This Row],[Does it cover basic nutrition ?]]=\"Yes\",\"Further evaluation by FAMI-QS\",IF(Tableau2[[#This Row],[Does it cover basic nutrition ?]]=\"No\",\"Further evaluation by FAMIQS\",orange))))","v":"Please complete the cells in orange"}]
[null,null,null,null,null,"Please complete the cells in orange","",{"$f":"IF(Tableau2[[#This Row],[orange]]=orange,orange,IF(ISERROR(SEARCH(\"*Other*\",D49)),IF(Tableau2[[#This Row],[Does it cover basic nutrition ?]]=\"Yes\",\"Further evaluation by FAMI-QS\",IF(Tableau2[[#This Row],[Does it cover basic nutrition ?]]=\"No\",\"Accepted\",orange)),IF(Tableau2[[#This Row],[Does it cover basic nutrition ?]]=\"Yes\",\"Further evaluation by FAMI-QS\",IF(Tableau2[[#This Row],[Does it cover basic nutrition ?]]=\"No\",\"Further evaluation by FAMIQS\",orange))))","v":"Please complete the cells in orange"}]
[null,null,null,null,null,"Please complete the cells in orange","",{"$f":"IF(Tableau2[[#This Row],[orange]]=orange,orange,IF(ISERROR(SEARCH(\"*Other*\",D50)),IF(Tableau2[[#This Row],[Does it cover basic nutrition ?]]=\"Yes\",\"Further evaluation by FAMI-QS\",IF(Tableau2[[#This Row],[Does it cover basic nutrition ?]]=\"No\",\"Accepted\",orange)),IF(Tableau2[[#This Row],[Does it cover basic nutrition ?]]=\"Yes\",\"Further evaluation by FAMI-QS\",IF(Tableau2[[#This Row],[Does it cover basic nutrition ?]]=\"No\",\"Further evaluation by FAMIQS\",orange))))","v":"Please complete the cells in orange"}]
[null,null,null,null,null,"Please complete the cells in orange","",{"$f":"IF(Tableau2[[#This Row],[orange]]=orange,orange,IF(ISERROR(SEARCH(\"*Other*\",D51)),IF(Tableau2[[#This Row],[Does it cover basic nutrition ?]]=\"Yes\",\"Further evaluation by FAMI-QS\",IF(Tableau2[[#This Row],[Does it cover basic nutrition ?]]=\"No\",\"Accepted\",orange)),IF(Tableau2[[#This Row],[Does it cover basic nutrition ?]]=\"Yes\",\"Further evaluation by FAMI-QS\",IF(Tableau2[[#This Row],[Does it cover basic nutrition ?]]=\"No\",\"Further evaluation by FAMIQS\",orange))))","v":"Please complete the cells in orange"}]
[null,null,null,null,null,"Please complete the cells in orange","",{"$f":"IF(Tableau2[[#This Row],[orange]]=orange,orange,IF(ISERROR(SEARCH(\"*Other*\",D52)),IF(Tableau2[[#This Row],[Does it cover basic nutrition ?]]=\"Yes\",\"Further evaluation by FAMI-QS\",IF(Tableau2[[#This Row],[Does it cover basic nutrition ?]]=\"No\",\"Accepted\",orange)),IF(Tableau2[[#This Row],[Does it cover basic nutrition ?]]=\"Yes\",\"Further evaluation by FAMI-QS\",IF(Tableau2[[#This Row],[Does it cover basic nutrition ?]]=\"No\",\"Further evaluation by FAMIQS\",orange))))","v":"Please complete the cells in orange"}]
[null,null,null,null,null,"Please complete the cells in orange","",{"$f":"IF(Tableau2[[#This Row],[orange]]=orange,orange,IF(ISERROR(SEARCH(\"*Other*\",D53)),IF(Tableau2[[#This Row],[Does it cover basic nutrition ?]]=\"Yes\",\"Further evaluation by FAMI-QS\",IF(Tableau2[[#This Row],[Does it cover basic nutrition ?]]=\"No\",\"Accepted\",orange)),IF(Tableau2[[#This Row],[Does it cover basic nutrition ?]]=\"Yes\",\"Further evaluation by FAMI-QS\",IF(Tableau2[[#This Row],[Does it cover basic nutrition ?]]=\"No\",\"Further evaluation by FAMIQS\",orange))))","v":"Please complete the cells in orange"}]
[null,null,null,null,null,"Please complete the cells in orange","",{"$f":"IF(Tableau2[[#This Row],[orange]]=orange,orange,IF(ISERROR(SEARCH(\"*Other*\",D54)),IF(Tableau2[[#This Row],[Does it cover basic nutrition ?]]=\"Yes\",\"Further evaluation by FAMI-QS\",IF(Tableau2[[#This Row],[Does it cover basic nutrition ?]]=\"No\",\"Accepted\",orange)),IF(Tableau2[[#This Row],[Does it cover basic nutrition ?]]=\"Yes\",\"Further evaluation by FAMI-QS\",IF(Tableau2[[#This Row],[Does it cover basic nutrition ?]]=\"No\",\"Further evaluation by FAMIQS\",orange))))","v":"Please complete the cells in orange"}]
[null,null,null,null,null,"Please complete the cells in orange","",{"$f":"IF(Tableau2[[#This Row],[orange]]=orange,orange,IF(ISERROR(SEARCH(\"*Other*\",D55)),IF(Tableau2[[#This Row],[Does it cover basic nutrition ?]]=\"Yes\",\"Further evaluation by FAMI-QS\",IF(Tableau2[[#This Row],[Does it cover basic nutrition ?]]=\"No\",\"Accepted\",orange)),IF(Tableau2[[#This Row],[Does it cover basic nutrition ?]]=\"Yes\",\"Further evaluation by FAMI-QS\",IF(Tableau2[[#This Row],[Does it cover basic nutrition ?]]=\"No\",\"Further evaluation by FAMIQS\",orange))))","v":"Please complete the cells in orange"}]
[null,null,null,null,null,"Please complete the cells in orange","",{"$f":"IF(Tableau2[[#This Row],[orange]]=orange,orange,IF(ISERROR(SEARCH(\"*Other*\",D56)),IF(Tableau2[[#This Row],[Does it cover basic nutrition ?]]=\"Yes\",\"Further evaluation by FAMI-QS\",IF(Tableau2[[#This Row],[Does it cover basic nutrition ?]]=\"No\",\"Accepted\",orange)),IF(Tableau2[[#This Row],[Does it cover basic nutrition ?]]=\"Yes\",\"Further evaluation by FAMI-QS\",IF(Tableau2[[#This Row],[Does it cover basic nutrition ?]]=\"No\",\"Further evaluation by FAMIQS\",orange))))","v":"Please complete the cells in orange"}]
[null,null,null,null,null,"Please complete the cells in orange","",{"$f":"IF(Tableau2[[#This Row],[orange]]=orange,orange,IF(ISERROR(SEARCH(\"*Other*\",D57)),IF(Tableau2[[#This Row],[Does it cover basic nutrition ?]]=\"Yes\",\"Further evaluation by FAMI-QS\",IF(Tableau2[[#This Row],[Does it cover basic nutrition ?]]=\"No\",\"Accepted\",orange)),IF(Tableau2[[#This Row],[Does it cover basic nutrition ?]]=\"Yes\",\"Further evaluation by FAMI-QS\",IF(Tableau2[[#This Row],[Does it cover basic nutrition ?]]=\"No\",\"Further evaluation by FAMIQS\",orange))))","v":"Please complete the cells in orange"}]
[null,null,null,null,null,"Please complete the cells in orange","",{"$f":"IF(Tableau2[[#This Row],[orange]]=orange,orange,IF(ISERROR(SEARCH(\"*Other*\",D58)),IF(Tableau2[[#This Row],[Does it cover basic nutrition ?]]=\"Yes\",\"Further evaluation by FAMI-QS\",IF(Tableau2[[#This Row],[Does it cover basic nutrition ?]]=\"No\",\"Accepted\",orange)),IF(Tableau2[[#This Row],[Does it cover basic nutrition ?]]=\"Yes\",\"Further evaluation by FAMI-QS\",IF(Tableau2[[#This Row],[Does it cover basic nutrition ?]]=\"No\",\"Further evaluation by FAMIQS\",orange))))","v":"Please complete the cells in orange"}]
[null,null,null,null,null,"Please complete the cells in orange","",{"$f":"IF(Tableau2[[#This Row],[orange]]=orange,orange,IF(ISERROR(SEARCH(\"*Other*\",D59)),IF(Tableau2[[#This Row],[Does it cover basic nutrition ?]]=\"Yes\",\"Further evaluation by FAMI-QS\",IF(Tableau2[[#This Row],[Does it cover basic nutrition ?]]=\"No\",\"Accepted\",orange)),IF(Tableau2[[#This Row],[Does it cover basic nutrition ?]]=\"Yes\",\"Further evaluation by FAMI-QS\",IF(Tableau2[[#This Row],[Does it cover basic nutrition ?]]=\"No\",\"Further evaluation by FAMIQS\",orange))))","v":"Please complete the cells in orange"}]
[null,null,null,null,null,"Please complete the cells in orange","",{"$f":"IF(Tableau2[[#This Row],[orange]]=orange,orange,IF(ISERROR(SEARCH(\"*Other*\",D60)),IF(Tableau2[[#This Row],[Does it cover basic nutrition ?]]=\"Yes\",\"Further evaluation by FAMI-QS\",IF(Tableau2[[#This Row],[Does it cover basic nutrition ?]]=\"No\",\"Accepted\",orange)),IF(Tableau2[[#This Row],[Does it cover basic nutrition ?]]=\"Yes\",\"Further evaluation by FAMI-QS\",IF(Tableau2[[#This Row],[Does it cover basic nutrition ?]]=\"No\",\"Further evaluation by FAMIQS\",orange))))","v":"Please complete the cells in orange"}]
[null,null,null,null,null,"Please complete the cells in orange","",{"$f":"IF(Tableau2[[#This Row],[orange]]=orange,orange,IF(ISERROR(SEARCH(\"*Other*\",D61)),IF(Tableau2[[#This Row],[Does it cover basic nutrition ?]]=\"Yes\",\"Further evaluation by FAMI-QS\",IF(Tableau2[[#This Row],[Does it cover basic nutrition ?]]=\"No\",\"Accepted\",orange)),IF(Tableau2[[#This Row],[Does it cover basic nutrition ?]]=\"Yes\",\"Further evaluation by FAMI-QS\",IF(Tableau2[[#This Row],[Does it cover basic nutrition ?]]=\"No\",\"Further evaluation by FAMIQS\",orange))))","v":"Please complete the cells in orange"}]
[null,null,null,null,null,"Please complete the cells in orange","",{"$f":"IF(Tableau2[[#This Row],[orange]]=orange,orange,IF(ISERROR(SEARCH(\"*Other*\",D62)),IF(Tableau2[[#This Row],[Does it cover basic nutrition ?]]=\"Yes\",\"Further evaluation by FAMI-QS\",IF(Tableau2[[#This Row],[Does it cover basic nutrition ?]]=\"No\",\"Accepted\",orange)),IF(Tableau2[[#This Row],[Does it cover basic nutrition ?]]=\"Yes\",\"Further evaluation by FAMI-QS\",IF(Tableau2[[#This Row],[Does it cover basic nutrition ?]]=\"No\",\"Further evaluation by FAMIQS\",orange))))","v":"Please complete the cells in orange"}]
[null,null,null,null,null,"Please complete the cells in orange","",{"$f":"IF(Tableau2[[#This Row],[orange]]=orange,orange,IF(ISERROR(SEARCH(\"*Other*\",D63)),IF(Tableau2[[#This Row],[Does it cover basic nutrition ?]]=\"Yes\",\"Further evaluation by FAMI-QS\",IF(Tableau2[[#This Row],[Does it cover basic nutrition ?]]=\"No\",\"Accepted\",orange)),IF(Tableau2[[#This Row],[Does it cover basic nutrition ?]]=\"Yes\",\"Further evaluation by FAMI-QS\",IF(Tableau2[[#This Row],[Does it cover basic nutrition ?]]=\"No\",\"Further evaluation by FAMIQS\",orange))))","v":"Please complete the cells in orange"}]
[null,null,null,null,null,"Please complete the cells in orange","",{"$f":"IF(Tableau2[[#This Row],[orange]]=orange,orange,IF(ISERROR(SEARCH(\"*Other*\",D64)),IF(Tableau2[[#This Row],[Does it cover basic nutrition ?]]=\"Yes\",\"Further evaluation by FAMI-QS\",IF(Tableau2[[#This Row],[Does it cover basic nutrition ?]]=\"No\",\"Accepted\",orange)),IF(Tableau2[[#This Row],[Does it cover basic nutrition ?]]=\"Yes\",\"Further evaluation by FAMI-QS\",IF(Tableau2[[#This Row],[Does it cover basic nutrition ?]]=\"No\",\"Further evaluation by FAMIQS\",orange))))","v":"Please complete the cells in orange"}]
[null,null,null,null,null,"Please complete the cells in orange","",{"$f":"IF(Tableau2[[#This Row],[orange]]=orange,orange,IF(ISERROR(SEARCH(\"*Other*\",D65)),IF(Tableau2[[#This Row],[Does it cover basic nutrition ?]]=\"Yes\",\"Further evaluation by FAMI-QS\",IF(Tableau2[[#This Row],[Does it cover basic nutrition ?]]=\"No\",\"Accepted\",orange)),IF(Tableau2[[#This Row],[Does it cover basic nutrition ?]]=\"Yes\",\"Further evaluation by FAMI-QS\",IF(Tableau2[[#This Row],[Does it cover basic nutrition ?]]=\"No\",\"Further evaluation by FAMIQS\",orange))))","v":"Please complete the cells in orange"}]
[null,null,null,null,null,"Please complete the cells in orange","",{"$f":"IF(Tableau2[[#This Row],[orange]]=orange,orange,IF(ISERROR(SEARCH(\"*Other*\",D66)),IF(Tableau2[[#This Row],[Does it cover basic nutrition ?]]=\"Yes\",\"Further evaluation by FAMI-QS\",IF(Tableau2[[#This Row],[Does it cover basic nutrition ?]]=\"No\",\"Accepted\",orange)),IF(Tableau2[[#This Row],[Does it cover basic nutrition ?]]=\"Yes\",\"Further evaluation by FAMI-QS\",IF(Tableau2[[#This Row],[Does it cover basic nutrition ?]]=\"No\",\"Further evaluation by FAMIQS\",orange))))","v":"Please complete the cells in orange"}]
[null,null,null,null,null,{"$f":"IF(OR(COUNTIF(B67,\"\"),COUNTIF(A67,\"\"),COUNTIF(C67,\"\"),COUNTIF(D67,\"\"),COUNTIF(E67,\"\")),\"Please complete the cells in orange\",\"\")","v":"Please complete the cells in orange"},{"$f":"IF(ISERROR(SEARCH(\"*Other*\",D67)),\"\",\"other\")","v":""},{"$f":"IF(Tableau2[[#This Row],[orange]]=orange,orange,IF(ISERROR(SEARCH(\"*Other*\",D67)),IF(Tableau2[[#This Row],[Does it cover basic nutrition ?]]=\"Yes\",\"Further evaluation by FAMI-QS\",IF(Tableau2[[#This Row],[Does it cover basic nutrition ?]]=\"No\",\"Accepted\",orange)),IF(Tableau2[[#This Row],[Does it cover basic nutrition ?]]=\"Yes\",\"Further evaluation by FAMI-QS\",IF(Tableau2[[#This Row],[Does it cover basic nutrition ?]]=\"No\",\"Further evaluation by FAMIQS\",orange))))","v":"Please complete the cells in orange"}]
[null,null,null,null,null,"Please complete the cells in orange","",{"$f":"IF(Tableau2[[#This Row],[orange]]=orange,orange,IF(ISERROR(SEARCH(\"*Other*\",D68)),IF(Tableau2[[#This Row],[Does it cover basic nutrition ?]]=\"Yes\",\"Further evaluation by FAMI-QS\",IF(Tableau2[[#This Row],[Does it cover basic nutrition ?]]=\"No\",\"Accepted\",orange)),IF(Tableau2[[#This Row],[Does it cover basic nutrition ?]]=\"Yes\",\"Further evaluation by FAMI-QS\",IF(Tableau2[[#This Row],[Does it cover basic nutrition ?]]=\"No\",\"Further evaluation by FAMIQS\",orange))))","v":"Please complete the cells in orange"}]
[null,null,null,null,null,"Please complete the cells in orange","",{"$f":"IF(Tableau2[[#This Row],[orange]]=orange,orange,IF(ISERROR(SEARCH(\"*Other*\",D69)),IF(Tableau2[[#This Row],[Does it cover basic nutrition ?]]=\"Yes\",\"Further evaluation by FAMI-QS\",IF(Tableau2[[#This Row],[Does it cover basic nutrition ?]]=\"No\",\"Accepted\",orange)),IF(Tableau2[[#This Row],[Does it cover basic nutrition ?]]=\"Yes\",\"Further evaluation by FAMI-QS\",IF(Tableau2[[#This Row],[Does it cover basic nutrition ?]]=\"No\",\"Further evaluation by FAMIQS\",orange))))","v":"Please complete the cells in orange"}]
[null,null,null,null,null,"Please complete the cells in orange","",{"$f":"IF(Tableau2[[#This Row],[orange]]=orange,orange,IF(ISERROR(SEARCH(\"*Other*\",D70)),IF(Tableau2[[#This Row],[Does it cover basic nutrition ?]]=\"Yes\",\"Further evaluation by FAMI-QS\",IF(Tableau2[[#This Row],[Does it cover basic nutrition ?]]=\"No\",\"Accepted\",orange)),IF(Tableau2[[#This Row],[Does it cover basic nutrition ?]]=\"Yes\",\"Further evaluation by FAMI-QS\",IF(Tableau2[[#This Row],[Does it cover basic nutrition ?]]=\"No\",\"Further evaluation by FAMIQS\",orange))))","v":"Please complete the cells in orange"}]
[null,null,null,null,null,"Please complete the cells in orange","",{"$f":"IF(Tableau2[[#This Row],[orange]]=orange,orange,IF(ISERROR(SEARCH(\"*Other*\",D71)),IF(Tableau2[[#This Row],[Does it cover basic nutrition ?]]=\"Yes\",\"Further evaluation by FAMI-QS\",IF(Tableau2[[#This Row],[Does it cover basic nutrition ?]]=\"No\",\"Accepted\",orange)),IF(Tableau2[[#This Row],[Does it cover basic nutrition ?]]=\"Yes\",\"Further evaluation by FAMI-QS\",IF(Tableau2[[#This Row],[Does it cover basic nutrition ?]]=\"No\",\"Further evaluation by FAMIQS\",orange))))","v":"Please complete the cells in orange"}]
[null,null,null,null,null,"Please complete the cells in orange","",{"$f":"IF(Tableau2[[#This Row],[orange]]=orange,orange,IF(ISERROR(SEARCH(\"*Other*\",D72)),IF(Tableau2[[#This Row],[Does it cover basic nutrition ?]]=\"Yes\",\"Further evaluation by FAMI-QS\",IF(Tableau2[[#This Row],[Does it cover basic nutrition ?]]=\"No\",\"Accepted\",orange)),IF(Tableau2[[#This Row],[Does it cover basic nutrition ?]]=\"Yes\",\"Further evaluation by FAMI-QS\",IF(Tableau2[[#This Row],[Does it cover basic nutrition ?]]=\"No\",\"Further evaluation by FAMIQS\",orange))))","v":"Please complete the cells in orange"}]
[null,null,null,null,null,"Please complete the cells in orange","",{"$f":"IF(Tableau2[[#This Row],[orange]]=orange,orange,IF(ISERROR(SEARCH(\"*Other*\",D73)),IF(Tableau2[[#This Row],[Does it cover basic nutrition ?]]=\"Yes\",\"Further evaluation by FAMI-QS\",IF(Tableau2[[#This Row],[Does it cover basic nutrition ?]]=\"No\",\"Accepted\",orange)),IF(Tableau2[[#This Row],[Does it cover basic nutrition ?]]=\"Yes\",\"Further evaluation by FAMI-QS\",IF(Tableau2[[#This Row],[Does it cover basic nutrition ?]]=\"No\",\"Further evaluation by FAMIQS\",orange))))","v":"Please complete the cells in orange"}]
[null,null,null,null,null,"Please complete the cells in orange","",{"$f":"IF(Tableau2[[#This Row],[orange]]=orange,orange,IF(ISERROR(SEARCH(\"*Other*\",D74)),IF(Tableau2[[#This Row],[Does it cover basic nutrition ?]]=\"Yes\",\"Further evaluation by FAMI-QS\",IF(Tableau2[[#This Row],[Does it cover basic nutrition ?]]=\"No\",\"Accepted\",orange)),IF(Tableau2[[#This Row],[Does it cover basic nutrition ?]]=\"Yes\",\"Further evaluation by FAMI-QS\",IF(Tableau2[[#This Row],[Does it cover basic nutrition ?]]=\"No\",\"Further evaluation by FAMIQS\",orange))))","v":"Please complete the cells in orange"}]
[null,null,null,null,null,"Please complete the cells in orange","",{"$f":"IF(Tableau2[[#This Row],[orange]]=orange,orange,IF(ISERROR(SEARCH(\"*Other*\",D75)),IF(Tableau2[[#This Row],[Does it cover basic nutrition ?]]=\"Yes\",\"Further evaluation by FAMI-QS\",IF(Tableau2[[#This Row],[Does it cover basic nutrition ?]]=\"No\",\"Accepted\",orange)),IF(Tableau2[[#This Row],[Does it cover basic nutrition ?]]=\"Yes\",\"Further evaluation by FAMI-QS\",IF(Tableau2[[#This Row],[Does it cover basic nutrition ?]]=\"No\",\"Further evaluation by FAMIQS\",orange))))","v":"Please complete the cells in orange"}]
[null,null,null,null,null,"Please complete the cells in orange","",{"$f":"IF(Tableau2[[#This Row],[orange]]=orange,orange,IF(ISERROR(SEARCH(\"*Other*\",D76)),IF(Tableau2[[#This Row],[Does it cover basic nutrition ?]]=\"Yes\",\"Further evaluation by FAMI-QS\",IF(Tableau2[[#This Row],[Does it cover basic nutrition ?]]=\"No\",\"Accepted\",orange)),IF(Tableau2[[#This Row],[Does it cover basic nutrition ?]]=\"Yes\",\"Further evaluation by FAMI-QS\",IF(Tableau2[[#This Row],[Does it cover basic nutrition ?]]=\"No\",\"Further evaluation by FAMIQS\",orange))))","v":"Please complete the cells in orange"}]
[null,null,null,null,null,"Please complete the cells in orange","",{"$f":"IF(Tableau2[[#This Row],[orange]]=orange,orange,IF(ISERROR(SEARCH(\"*Other*\",D77)),IF(Tableau2[[#This Row],[Does it cover basic nutrition ?]]=\"Yes\",\"Further evaluation by FAMI-QS\",IF(Tableau2[[#This Row],[Does it cover basic nutrition ?]]=\"No\",\"Accepted\",orange)),IF(Tableau2[[#This Row],[Does it cover basic nutrition ?]]=\"Yes\",\"Further evaluation by FAMI-QS\",IF(Tableau2[[#This Row],[Does it cover basic nutrition ?]]=\"No\",\"Further evaluation by FAMIQS\",orange))))","v":"Please complete the cells in orange"}]
[null,null,null,null,null,"Please complete the cells in orange","",{"$f":"IF(Tableau2[[#This Row],[orange]]=orange,orange,IF(ISERROR(SEARCH(\"*Other*\",D78)),IF(Tableau2[[#This Row],[Does it cover basic nutrition ?]]=\"Yes\",\"Further evaluation by FAMI-QS\",IF(Tableau2[[#This Row],[Does it cover basic nutrition ?]]=\"No\",\"Accepted\",orange)),IF(Tableau2[[#This Row],[Does it cover basic nutrition ?]]=\"Yes\",\"Further evaluation by FAMI-QS\",IF(Tableau2[[#This Row],[Does it cover basic nutrition ?]]=\"No\",\"Further evaluation by FAMIQS\",orange))))","v":"Please complete the cells in orange"}]
[null,null,null,null,null,"Please complete the cells in orange","",{"$f":"IF(Tableau2[[#This Row],[orange]]=orange,orange,IF(ISERROR(SEARCH(\"*Other*\",D79)),IF(Tableau2[[#This Row],[Does it cover basic nutrition ?]]=\"Yes\",\"Further evaluation by FAMI-QS\",IF(Tableau2[[#This Row],[Does it cover basic nutrition ?]]=\"No\",\"Accepted\",orange)),IF(Tableau2[[#This Row],[Does it cover basic nutrition ?]]=\"Yes\",\"Further evaluation by FAMI-QS\",IF(Tableau2[[#This Row],[Does it cover basic nutrition ?]]=\"No\",\"Further evaluation by FAMIQS\",orange))))","v":"Please complete the cells in orange"}]
[null,null,null,null,null,"Please complete the cells in orange","",{"$f":"IF(Tableau2[[#This Row],[orange]]=orange,orange,IF(ISERROR(SEARCH(\"*Other*\",D80)),IF(Tableau2[[#This Row],[Does it cover basic nutrition ?]]=\"Yes\",\"Further evaluation by FAMI-QS\",IF(Tableau2[[#This Row],[Does it cover basic nutrition ?]]=\"No\",\"Accepted\",orange)),IF(Tableau2[[#This Row],[Does it cover basic nutrition ?]]=\"Yes\",\"Further evaluation by FAMI-QS\",IF(Tableau2[[#This Row],[Does it cover basic nutrition ?]]=\"No\",\"Further evaluation by FAMIQS\",orange))))","v":"Please complete the cells in orange"}]
[null,null,null,null,null,"Please complete the cells in orange","",{"$f":"IF(Tableau2[[#This Row],[orange]]=orange,orange,IF(ISERROR(SEARCH(\"*Other*\",D81)),IF(Tableau2[[#This Row],[Does it cover basic nutrition ?]]=\"Yes\",\"Further evaluation by FAMI-QS\",IF(Tableau2[[#This Row],[Does it cover basic nutrition ?]]=\"No\",\"Accepted\",orange)),IF(Tableau2[[#This Row],[Does it cover basic nutrition ?]]=\"Yes\",\"Further evaluation by FAMI-QS\",IF(Tableau2[[#This Row],[Does it cover basic nutrition ?]]=\"No\",\"Further evaluation by FAMIQS\",orange))))","v":"Please complete the cells in orange"}]
[null,null,null,null,null,"Please complete the cells in orange","",{"$f":"IF(Tableau2[[#This Row],[orange]]=orange,orange,IF(ISERROR(SEARCH(\"*Other*\",D82)),IF(Tableau2[[#This Row],[Does it cover basic nutrition ?]]=\"Yes\",\"Further evaluation by FAMI-QS\",IF(Tableau2[[#This Row],[Does it cover basic nutrition ?]]=\"No\",\"Accepted\",orange)),IF(Tableau2[[#This Row],[Does it cover basic nutrition ?]]=\"Yes\",\"Further evaluation by FAMI-QS\",IF(Tableau2[[#This Row],[Does it cover basic nutrition ?]]=\"No\",\"Further evaluation by FAMIQS\",orange))))","v":"Please complete the cells in orange"}]
[null,null,null,null,null,"Please complete the cells in orange","",{"$f":"IF(Tableau2[[#This Row],[orange]]=orange,orange,IF(ISERROR(SEARCH(\"*Other*\",D83)),IF(Tableau2[[#This Row],[Does it cover basic nutrition ?]]=\"Yes\",\"Further evaluation by FAMI-QS\",IF(Tableau2[[#This Row],[Does it cover basic nutrition ?]]=\"No\",\"Accepted\",orange)),IF(Tableau2[[#This Row],[Does it cover basic nutrition ?]]=\"Yes\",\"Further evaluation by FAMI-QS\",IF(Tableau2[[#This Row],[Does it cover basic nutrition ?]]=\"No\",\"Further evaluation by FAMIQS\",orange))))","v":"Please complete the cells in orange"}]
[null,null,null,null,null,"Please complete the cells in orange","",{"$f":"IF(Tableau2[[#This Row],[orange]]=orange,orange,IF(ISERROR(SEARCH(\"*Other*\",D84)),IF(Tableau2[[#This Row],[Does it cover basic nutrition ?]]=\"Yes\",\"Further evaluation by FAMI-QS\",IF(Tableau2[[#This Row],[Does it cover basic nutrition ?]]=\"No\",\"Accepted\",orange)),IF(Tableau2[[#This Row],[Does it cover basic nutrition ?]]=\"Yes\",\"Further evaluation by FAMI-QS\",IF(Tableau2[[#This Row],[Does it cover basic nutrition ?]]=\"No\",\"Further evaluation by FAMIQS\",orange))))","v":"Please complete the cells in orange"}]
[null,null,null,null,null,"Please complete the cells in orange","",{"$f":"IF(Tableau2[[#This Row],[orange]]=orange,orange,IF(ISERROR(SEARCH(\"*Other*\",D85)),IF(Tableau2[[#This Row],[Does it cover basic nutrition ?]]=\"Yes\",\"Further evaluation by FAMI-QS\",IF(Tableau2[[#This Row],[Does it cover basic nutrition ?]]=\"No\",\"Accepted\",orange)),IF(Tableau2[[#This Row],[Does it cover basic nutrition ?]]=\"Yes\",\"Further evaluation by FAMI-QS\",IF(Tableau2[[#This Row],[Does it cover basic nutrition ?]]=\"No\",\"Further evaluation by FAMIQS\",orange))))","v":"Please complete the cells in orange"}]
[null,null,null,null,null,"Please complete the cells in orange","",{"$f":"IF(Tableau2[[#This Row],[orange]]=orange,orange,IF(ISERROR(SEARCH(\"*Other*\",D86)),IF(Tableau2[[#This Row],[Does it cover basic nutrition ?]]=\"Yes\",\"Further evaluation by FAMI-QS\",IF(Tableau2[[#This Row],[Does it cover basic nutrition ?]]=\"No\",\"Accepted\",orange)),IF(Tableau2[[#This Row],[Does it cover basic nutrition ?]]=\"Yes\",\"Further evaluation by FAMI-QS\",IF(Tableau2[[#This Row],[Does it cover basic nutrition ?]]=\"No\",\"Further evaluation by FAMIQS\",orange))))","v":"Please complete the cells in orange"}]
[null,null,null,null,null,"Please complete the cells in orange","",{"$f":"IF(Tableau2[[#This Row],[orange]]=orange,orange,IF(ISERROR(SEARCH(\"*Other*\",D87)),IF(Tableau2[[#This Row],[Does it cover basic nutrition ?]]=\"Yes\",\"Further evaluation by FAMI-QS\",IF(Tableau2[[#This Row],[Does it cover basic nutrition ?]]=\"No\",\"Accepted\",orange)),IF(Tableau2[[#This Row],[Does it cover basic nutrition ?]]=\"Yes\",\"Further evaluation by FAMI-QS\",IF(Tableau2[[#This Row],[Does it cover basic nutrition ?]]=\"No\",\"Further evaluation by FAMIQS\",orange))))","v":"Please complete the cells in orange"}]
[null,null,null,null,null,"Please complete the cells in orange","",{"$f":"IF(Tableau2[[#This Row],[orange]]=orange,orange,IF(ISERROR(SEARCH(\"*Other*\",D88)),IF(Tableau2[[#This Row],[Does it cover basic nutrition ?]]=\"Yes\",\"Further evaluation by FAMI-QS\",IF(Tableau2[[#This Row],[Does it cover basic nutrition ?]]=\"No\",\"Accepted\",orange)),IF(Tableau2[[#This Row],[Does it cover basic nutrition ?]]=\"Yes\",\"Further evaluation by FAMI-QS\",IF(Tableau2[[#This Row],[Does it cover basic nutrition ?]]=\"No\",\"Further evaluation by FAMIQS\",orange))))","v":"Please complete the cells in orange"}]
[null,null,null,null,null,"Please complete the cells in orange","",{"$f":"IF(Tableau2[[#This Row],[orange]]=orange,orange,IF(ISERROR(SEARCH(\"*Other*\",D89)),IF(Tableau2[[#This Row],[Does it cover basic nutrition ?]]=\"Yes\",\"Further evaluation by FAMI-QS\",IF(Tableau2[[#This Row],[Does it cover basic nutrition ?]]=\"No\",\"Accepted\",orange)),IF(Tableau2[[#This Row],[Does it cover basic nutrition ?]]=\"Yes\",\"Further evaluation by FAMI-QS\",IF(Tableau2[[#This Row],[Does it cover basic nutrition ?]]=\"No\",\"Further evaluation by FAMIQS\",orange))))","v":"Please complete the cells in orange"}]
[null,null,null,null,null,"Please complete the cells in orange","",{"$f":"IF(Tableau2[[#This Row],[orange]]=orange,orange,IF(ISERROR(SEARCH(\"*Other*\",D90)),IF(Tableau2[[#This Row],[Does it cover basic nutrition ?]]=\"Yes\",\"Further evaluation by FAMI-QS\",IF(Tableau2[[#This Row],[Does it cover basic nutrition ?]]=\"No\",\"Accepted\",orange)),IF(Tableau2[[#This Row],[Does it cover basic nutrition ?]]=\"Yes\",\"Further evaluation by FAMI-QS\",IF(Tableau2[[#This Row],[Does it cover basic nutrition ?]]=\"No\",\"Further evaluation by FAMIQS\",orange))))","v":"Please complete the cells in orange"}]
[null,null,null,null,null,"Please complete the cells in orange","",{"$f":"IF(Tableau2[[#This Row],[orange]]=orange,orange,IF(ISERROR(SEARCH(\"*Other*\",D91)),IF(Tableau2[[#This Row],[Does it cover basic nutrition ?]]=\"Yes\",\"Further evaluation by FAMI-QS\",IF(Tableau2[[#This Row],[Does it cover basic nutrition ?]]=\"No\",\"Accepted\",orange)),IF(Tableau2[[#This Row],[Does it cover basic nutrition ?]]=\"Yes\",\"Further evaluation by FAMI-QS\",IF(Tableau2[[#This Row],[Does it cover basic nutrition ?]]=\"No\",\"Further evaluation by FAMIQS\",orange))))","v":"Please complete the cells in orange"}]
[null,null,null,null,null,"Please complete the cells in orange","",{"$f":"IF(Tableau2[[#This Row],[orange]]=orange,orange,IF(ISERROR(SEARCH(\"*Other*\",D92)),IF(Tableau2[[#This Row],[Does it cover basic nutrition ?]]=\"Yes\",\"Further evaluation by FAMI-QS\",IF(Tableau2[[#This Row],[Does it cover basic nutrition ?]]=\"No\",\"Accepted\",orange)),IF(Tableau2[[#This Row],[Does it cover basic nutrition ?]]=\"Yes\",\"Further evaluation by FAMI-QS\",IF(Tableau2[[#This Row],[Does it cover basic nutrition ?]]=\"No\",\"Further evaluation by FAMIQS\",orange))))","v":"Please complete the cells in orange"}]
[null,null,null,null,null,"Please complete the cells in orange","",{"$f":"IF(Tableau2[[#This Row],[orange]]=orange,orange,IF(ISERROR(SEARCH(\"*Other*\",D93)),IF(Tableau2[[#This Row],[Does it cover basic nutrition ?]]=\"Yes\",\"Further evaluation by FAMI-QS\",IF(Tableau2[[#This Row],[Does it cover basic nutrition ?]]=\"No\",\"Accepted\",orange)),IF(Tableau2[[#This Row],[Does it cover basic nutrition ?]]=\"Yes\",\"Further evaluation by FAMI-QS\",IF(Tableau2[[#This Row],[Does it cover basic nutrition ?]]=\"No\",\"Further evaluation by FAMIQS\",orange))))","v":"Please complete the cells in orange"}]
[null,null,null,null,null,"Please complete the cells in orange","",{"$f":"IF(Tableau2[[#This Row],[orange]]=orange,orange,IF(ISERROR(SEARCH(\"*Other*\",D94)),IF(Tableau2[[#This Row],[Does it cover basic nutrition ?]]=\"Yes\",\"Further evaluation by FAMI-QS\",IF(Tableau2[[#This Row],[Does it cover basic nutrition ?]]=\"No\",\"Accepted\",orange)),IF(Tableau2[[#This Row],[Does it cover basic nutrition ?]]=\"Yes\",\"Further evaluation by FAMI-QS\",IF(Tableau2[[#This Row],[Does it cover basic nutrition ?]]=\"No\",\"Further evaluation by FAMIQS\",orange))))","v":"Please complete the cells in orange"}]
[null,null,null,null,null,"Please complete the cells in orange","",{"$f":"IF(Tableau2[[#This Row],[orange]]=orange,orange,IF(ISERROR(SEARCH(\"*Other*\",D95)),IF(Tableau2[[#This Row],[Does it cover basic nutrition ?]]=\"Yes\",\"Further evaluation by FAMI-QS\",IF(Tableau2[[#This Row],[Does it cover basic nutrition ?]]=\"No\",\"Accepted\",orange)),IF(Tableau2[[#This Row],[Does it cover basic nutrition ?]]=\"Yes\",\"Further evaluation by FAMI-QS\",IF(Tableau2[[#This Row],[Does it cover basic nutrition ?]]=\"No\",\"Further evaluation by FAMIQS\",orange))))","v":"Please complete the cells in orange"}]
[null,null,null,null,null,"Please complete the cells in orange","",{"$f":"IF(Tableau2[[#This Row],[orange]]=orange,orange,IF(ISERROR(SEARCH(\"*Other*\",D96)),IF(Tableau2[[#This Row],[Does it cover basic nutrition ?]]=\"Yes\",\"Further evaluation by FAMI-QS\",IF(Tableau2[[#This Row],[Does it cover basic nutrition ?]]=\"No\",\"Accepted\",orange)),IF(Tableau2[[#This Row],[Does it cover basic nutrition ?]]=\"Yes\",\"Further evaluation by FAMI-QS\",IF(Tableau2[[#This Row],[Does it cover basic nutrition ?]]=\"No\",\"Further evaluation by FAMIQS\",orange))))","v":"Please complete the cells in orange"}]
[null,null,null,null,null,"Please complete the cells in orange","",{"$f":"IF(Tableau2[[#This Row],[orange]]=orange,orange,IF(ISERROR(SEARCH(\"*Other*\",D97)),IF(Tableau2[[#This Row],[Does it cover basic nutrition ?]]=\"Yes\",\"Further evaluation by FAMI-QS\",IF(Tableau2[[#This Row],[Does it cover basic nutrition ?]]=\"No\",\"Accepted\",orange)),IF(Tableau2[[#This Row],[Does it cover basic nutrition ?]]=\"Yes\",\"Further evaluation by FAMI-QS\",IF(Tableau2[[#This Row],[Does it cover basic nutrition ?]]=\"No\",\"Further evaluation by FAMIQS\",orange))))","v":"Please complete the cells in orange"}]
[null,null,null,null,null,"Please complete the cells in orange","",{"$f":"IF(Tableau2[[#This Row],[orange]]=orange,orange,IF(ISERROR(SEARCH(\"*Other*\",D98)),IF(Tableau2[[#This Row],[Does it cover basic nutrition ?]]=\"Yes\",\"Further evaluation by FAMI-QS\",IF(Tableau2[[#This Row],[Does it cover basic nutrition ?]]=\"No\",\"Accepted\",orange)),IF(Tableau2[[#This Row],[Does it cover basic nutrition ?]]=\"Yes\",\"Further evaluation by FAMI-QS\",IF(Tableau2[[#This Row],[Does it cover basic nutrition ?]]=\"No\",\"Further evaluation by FAMIQS\",orange))))","v":"Please complete the cells in orange"}]
[null,null,null,null,null,{"$f":"IF(OR(COUNTIF(B99,\"\"),COUNTIF(A99,\"\"),COUNTIF(C99,\"\"),COUNTIF(D99,\"\"),COUNTIF(E99,\"\")),\"Please complete the cells in orange\",\"\")","v":"Please complete the cells in orange"},{"$f":"IF(ISERROR(SEARCH(\"*Other*\",D99)),\"\",\"other\")","v":""},{"$f":"IF(Tableau2[[#This Row],[orange]]=orange,orange,IF(ISERROR(SEARCH(\"*Other*\",D99)),IF(Tableau2[[#This Row],[Does it cover basic nutrition ?]]=\"Yes\",\"Further evaluation by FAMI-QS\",IF(Tableau2[[#This Row],[Does it cover basic nutrition ?]]=\"No\",\"Accepted\",orange)),IF(Tableau2[[#This Row],[Does it cover basic nutrition ?]]=\"Yes\",\"Further evaluation by FAMI-QS\",IF(Tableau2[[#This Row],[Does it cover basic nutrition ?]]=\"No\",\"Further evaluation by FAMIQS\",orange))))","v":"Please complete the cells in orange"}]
[null,null,null,null,null,"Please complete the cells in orange","",{"$f":"IF(Tableau2[[#This Row],[orange]]=orange,orange,IF(ISERROR(SEARCH(\"*Other*\",D100)),IF(Tableau2[[#This Row],[Does it cover basic nutrition ?]]=\"Yes\",\"Further evaluation by FAMI-QS\",IF(Tableau2[[#This Row],[Does it cover basic nutrition ?]]=\"No\",\"Accepted\",orange)),IF(Tableau2[[#This Row],[Does it cover basic nutrition ?]]=\"Yes\",\"Further evaluation by FAMI-QS\",IF(Tableau2[[#This Row],[Does it cover basic nutrition ?]]=\"No\",\"Further evaluation by FAMIQS\",orange))))","v":"Please complete the cells in orange"}]
[null,null,null,null,null,"Please complete the cells in orange","",{"$f":"IF(Tableau2[[#This Row],[orange]]=orange,orange,IF(ISERROR(SEARCH(\"*Other*\",D101)),IF(Tableau2[[#This Row],[Does it cover basic nutrition ?]]=\"Yes\",\"Further evaluation by FAMI-QS\",IF(Tableau2[[#This Row],[Does it cover basic nutrition ?]]=\"No\",\"Accepted\",orange)),IF(Tableau2[[#This Row],[Does it cover basic nutrition ?]]=\"Yes\",\"Further evaluation by FAMI-QS\",IF(Tableau2[[#This Row],[Does it cover basic nutrition ?]]=\"No\",\"Further evaluation by FAMIQS\",orange))))","v":"Please complete the cells in orange"}]
[null,null,null,null,null,"Please complete the cells in orange","",{"$f":"IF(Tableau2[[#This Row],[orange]]=orange,orange,IF(ISERROR(SEARCH(\"*Other*\",D102)),IF(Tableau2[[#This Row],[Does it cover basic nutrition ?]]=\"Yes\",\"Further evaluation by FAMI-QS\",IF(Tableau2[[#This Row],[Does it cover basic nutrition ?]]=\"No\",\"Accepted\",orange)),IF(Tableau2[[#This Row],[Does it cover basic nutrition ?]]=\"Yes\",\"Further evaluation by FAMI-QS\",IF(Tableau2[[#This Row],[Does it cover basic nutrition ?]]=\"No\",\"Further evaluation by FAMIQS\",orange))))","v":"Please complete the cells in orange"}]
[null,null,null,null,null,"Please complete the cells in orange","",{"$f":"IF(Tableau2[[#This Row],[orange]]=orange,orange,IF(ISERROR(SEARCH(\"*Other*\",D103)),IF(Tableau2[[#This Row],[Does it cover basic nutrition ?]]=\"Yes\",\"Further evaluation by FAMI-QS\",IF(Tableau2[[#This Row],[Does it cover basic nutrition ?]]=\"No\",\"Accepted\",orange)),IF(Tableau2[[#This Row],[Does it cover basic nutrition ?]]=\"Yes\",\"Further evaluation by FAMI-QS\",IF(Tableau2[[#This Row],[Does it cover basic nutrition ?]]=\"No\",\"Further evaluation by FAMIQS\",orange))))","v":"Please complete the cells in orange"}]
[null,null,null,null,null,"Please complete the cells in orange","",{"$f":"IF(Tableau2[[#This Row],[orange]]=orange,orange,IF(ISERROR(SEARCH(\"*Other*\",D104)),IF(Tableau2[[#This Row],[Does it cover basic nutrition ?]]=\"Yes\",\"Further evaluation by FAMI-QS\",IF(Tableau2[[#This Row],[Does it cover basic nutrition ?]]=\"No\",\"Accepted\",orange)),IF(Tableau2[[#This Row],[Does it cover basic nutrition ?]]=\"Yes\",\"Further evaluation by FAMI-QS\",IF(Tableau2[[#This Row],[Does it cover basic nutrition ?]]=\"No\",\"Further evaluation by FAMIQS\",orange))))","v":"Please complete the cells in orange"}]
[null,null,null,null,null,"Please complete the cells in orange","",{"$f":"IF(Tableau2[[#This Row],[orange]]=orange,orange,IF(ISERROR(SEARCH(\"*Other*\",D105)),IF(Tableau2[[#This Row],[Does it cover basic nutrition ?]]=\"Yes\",\"Further evaluation by FAMI-QS\",IF(Tableau2[[#This Row],[Does it cover basic nutrition ?]]=\"No\",\"Accepted\",orange)),IF(Tableau2[[#This Row],[Does it cover basic nutrition ?]]=\"Yes\",\"Further evaluation by FAMI-QS\",IF(Tableau2[[#This Row],[Does it cover basic nutrition ?]]=\"No\",\"Further evaluation by FAMIQS\",orange))))","v":"Please complete the cells in orange"}]
[null,null,null,null,null,"Please complete the cells in orange","",{"$f":"IF(Tableau2[[#This Row],[orange]]=orange,orange,IF(ISERROR(SEARCH(\"*Other*\",D106)),IF(Tableau2[[#This Row],[Does it cover basic nutrition ?]]=\"Yes\",\"Further evaluation by FAMI-QS\",IF(Tableau2[[#This Row],[Does it cover basic nutrition ?]]=\"No\",\"Accepted\",orange)),IF(Tableau2[[#This Row],[Does it cover basic nutrition ?]]=\"Yes\",\"Further evaluation by FAMI-QS\",IF(Tableau2[[#This Row],[Does it cover basic nutrition ?]]=\"No\",\"Further evaluation by FAMIQS\",orange))))","v":"Please complete the cells in orange"}]
[null,null,null,null,null,"Please complete the cells in orange","",{"$f":"IF(Tableau2[[#This Row],[orange]]=orange,orange,IF(ISERROR(SEARCH(\"*Other*\",D107)),IF(Tableau2[[#This Row],[Does it cover basic nutrition ?]]=\"Yes\",\"Further evaluation by FAMI-QS\",IF(Tableau2[[#This Row],[Does it cover basic nutrition ?]]=\"No\",\"Accepted\",orange)),IF(Tableau2[[#This Row],[Does it cover basic nutrition ?]]=\"Yes\",\"Further evaluation by FAMI-QS\",IF(Tableau2[[#This Row],[Does it cover basic nutrition ?]]=\"No\",\"Further evaluation by FAMIQS\",orange))))","v":"Please complete the cells in orange"}]
[null,null,null,null,null,"Please complete the cells in orange","",{"$f":"IF(Tableau2[[#This Row],[orange]]=orange,orange,IF(ISERROR(SEARCH(\"*Other*\",D108)),IF(Tableau2[[#This Row],[Does it cover basic nutrition ?]]=\"Yes\",\"Further evaluation by FAMI-QS\",IF(Tableau2[[#This Row],[Does it cover basic nutrition ?]]=\"No\",\"Accepted\",orange)),IF(Tableau2[[#This Row],[Does it cover basic nutrition ?]]=\"Yes\",\"Further evaluation by FAMI-QS\",IF(Tableau2[[#This Row],[Does it cover basic nutrition ?]]=\"No\",\"Further evaluation by FAMIQS\",orange))))","v":"Please complete the cells in orange"}]
[null,null,null,null,null,"Please complete the cells in orange","",{"$f":"IF(Tableau2[[#This Row],[orange]]=orange,orange,IF(ISERROR(SEARCH(\"*Other*\",D109)),IF(Tableau2[[#This Row],[Does it cover basic nutrition ?]]=\"Yes\",\"Further evaluation by FAMI-QS\",IF(Tableau2[[#This Row],[Does it cover basic nutrition ?]]=\"No\",\"Accepted\",orange)),IF(Tableau2[[#This Row],[Does it cover basic nutrition ?]]=\"Yes\",\"Further evaluation by FAMI-QS\",IF(Tableau2[[#This Row],[Does it cover basic nutrition ?]]=\"No\",\"Further evaluation by FAMIQS\",orange))))","v":"Please complete the cells in orange"}]
[null,null,null,null,null,"Please complete the cells in orange","",{"$f":"IF(Tableau2[[#This Row],[orange]]=orange,orange,IF(ISERROR(SEARCH(\"*Other*\",D110)),IF(Tableau2[[#This Row],[Does it cover basic nutrition ?]]=\"Yes\",\"Further evaluation by FAMI-QS\",IF(Tableau2[[#This Row],[Does it cover basic nutrition ?]]=\"No\",\"Accepted\",orange)),IF(Tableau2[[#This Row],[Does it cover basic nutrition ?]]=\"Yes\",\"Further evaluation by FAMI-QS\",IF(Tableau2[[#This Row],[Does it cover basic nutrition ?]]=\"No\",\"Further evaluation by FAMIQS\",orange))))","v":"Please complete the cells in orange"}]
[null,null,null,null,null,"Please complete the cells in orange","",{"$f":"IF(Tableau2[[#This Row],[orange]]=orange,orange,IF(ISERROR(SEARCH(\"*Other*\",D111)),IF(Tableau2[[#This Row],[Does it cover basic nutrition ?]]=\"Yes\",\"Further evaluation by FAMI-QS\",IF(Tableau2[[#This Row],[Does it cover basic nutrition ?]]=\"No\",\"Accepted\",orange)),IF(Tableau2[[#This Row],[Does it cover basic nutrition ?]]=\"Yes\",\"Further evaluation by FAMI-QS\",IF(Tableau2[[#This Row],[Does it cover basic nutrition ?]]=\"No\",\"Further evaluation by FAMIQS\",orange))))","v":"Please complete the cells in orange"}]
[null,null,null,null,null,"Please complete the cells in orange","",{"$f":"IF(Tableau2[[#This Row],[orange]]=orange,orange,IF(ISERROR(SEARCH(\"*Other*\",D112)),IF(Tableau2[[#This Row],[Does it cover basic nutrition ?]]=\"Yes\",\"Further evaluation by FAMI-QS\",IF(Tableau2[[#This Row],[Does it cover basic nutrition ?]]=\"No\",\"Accepted\",orange)),IF(Tableau2[[#This Row],[Does it cover basic nutrition ?]]=\"Yes\",\"Further evaluation by FAMI-QS\",IF(Tableau2[[#This Row],[Does it cover basic nutrition ?]]=\"No\",\"Further evaluation by FAMIQS\",orange))))","v":"Please complete the cells in orange"}]
[null,null,null,null,null,"Please complete the cells in orange","",{"$f":"IF(Tableau2[[#This Row],[orange]]=orange,orange,IF(ISERROR(SEARCH(\"*Other*\",D113)),IF(Tableau2[[#This Row],[Does it cover basic nutrition ?]]=\"Yes\",\"Further evaluation by FAMI-QS\",IF(Tableau2[[#This Row],[Does it cover basic nutrition ?]]=\"No\",\"Accepted\",orange)),IF(Tableau2[[#This Row],[Does it cover basic nutrition ?]]=\"Yes\",\"Further evaluation by FAMI-QS\",IF(Tableau2[[#This Row],[Does it cover basic nutrition ?]]=\"No\",\"Further evaluation by FAMIQS\",orange))))","v":"Please complete the cells in orange"}]
[null,null,null,null,null,"Please complete the cells in orange","",{"$f":"IF(Tableau2[[#This Row],[orange]]=orange,orange,IF(ISERROR(SEARCH(\"*Other*\",D114)),IF(Tableau2[[#This Row],[Does it cover basic nutrition ?]]=\"Yes\",\"Further evaluation by FAMI-QS\",IF(Tableau2[[#This Row],[Does it cover basic nutrition ?]]=\"No\",\"Accepted\",orange)),IF(Tableau2[[#This Row],[Does it cover basic nutrition ?]]=\"Yes\",\"Further evaluation by FAMI-QS\",IF(Tableau2[[#This Row],[Does it cover basic nutrition ?]]=\"No\",\"Further evaluation by FAMIQS\",orange))))","v":"Please complete the cells in orange"}]
[null,null,null,null,null,"Please complete the cells in orange","",{"$f":"IF(Tableau2[[#This Row],[orange]]=orange,orange,IF(ISERROR(SEARCH(\"*Other*\",D115)),IF(Tableau2[[#This Row],[Does it cover basic nutrition ?]]=\"Yes\",\"Further evaluation by FAMI-QS\",IF(Tableau2[[#This Row],[Does it cover basic nutrition ?]]=\"No\",\"Accepted\",orange)),IF(Tableau2[[#This Row],[Does it cover basic nutrition ?]]=\"Yes\",\"Further evaluation by FAMI-QS\",IF(Tableau2[[#This Row],[Does it cover basic nutrition ?]]=\"No\",\"Further evaluation by FAMIQS\",orange))))","v":"Please complete the cells in orange"}]
[null,null,null,null,null,"Please complete the cells in orange","",{"$f":"IF(Tableau2[[#This Row],[orange]]=orange,orange,IF(ISERROR(SEARCH(\"*Other*\",D116)),IF(Tableau2[[#This Row],[Does it cover basic nutrition ?]]=\"Yes\",\"Further evaluation by FAMI-QS\",IF(Tableau2[[#This Row],[Does it cover basic nutrition ?]]=\"No\",\"Accepted\",orange)),IF(Tableau2[[#This Row],[Does it cover basic nutrition ?]]=\"Yes\",\"Further evaluation by FAMI-QS\",IF(Tableau2[[#This Row],[Does it cover basic nutrition ?]]=\"No\",\"Further evaluation by FAMIQS\",orange))))","v":"Please complete the cells in orange"}]
[null,null,null,null,null,"Please complete the cells in orange","",{"$f":"IF(Tableau2[[#This Row],[orange]]=orange,orange,IF(ISERROR(SEARCH(\"*Other*\",D117)),IF(Tableau2[[#This Row],[Does it cover basic nutrition ?]]=\"Yes\",\"Further evaluation by FAMI-QS\",IF(Tableau2[[#This Row],[Does it cover basic nutrition ?]]=\"No\",\"Accepted\",orange)),IF(Tableau2[[#This Row],[Does it cover basic nutrition ?]]=\"Yes\",\"Further evaluation by FAMI-QS\",IF(Tableau2[[#This Row],[Does it cover basic nutrition ?]]=\"No\",\"Further evaluation by FAMIQS\",orange))))","v":"Please complete the cells in orange"}]
[null,null,null,null,null,"Please complete the cells in orange","",{"$f":"IF(Tableau2[[#This Row],[orange]]=orange,orange,IF(ISERROR(SEARCH(\"*Other*\",D118)),IF(Tableau2[[#This Row],[Does it cover basic nutrition ?]]=\"Yes\",\"Further evaluation by FAMI-QS\",IF(Tableau2[[#This Row],[Does it cover basic nutrition ?]]=\"No\",\"Accepted\",orange)),IF(Tableau2[[#This Row],[Does it cover basic nutrition ?]]=\"Yes\",\"Further evaluation by FAMI-QS\",IF(Tableau2[[#This Row],[Does it cover basic nutrition ?]]=\"No\",\"Further evaluation by FAMIQS\",orange))))","v":"Please complete the cells in orange"}]
[null,null,null,null,null,"Please complete the cells in orange","",{"$f":"IF(Tableau2[[#This Row],[orange]]=orange,orange,IF(ISERROR(SEARCH(\"*Other*\",D119)),IF(Tableau2[[#This Row],[Does it cover basic nutrition ?]]=\"Yes\",\"Further evaluation by FAMI-QS\",IF(Tableau2[[#This Row],[Does it cover basic nutrition ?]]=\"No\",\"Accepted\",orange)),IF(Tableau2[[#This Row],[Does it cover basic nutrition ?]]=\"Yes\",\"Further evaluation by FAMI-QS\",IF(Tableau2[[#This Row],[Does it cover basic nutrition ?]]=\"No\",\"Further evaluation by FAMIQS\",orange))))","v":"Please complete the cells in orange"}]
[null,null,null,null,null,"Please complete the cells in orange","",{"$f":"IF(Tableau2[[#This Row],[orange]]=orange,orange,IF(ISERROR(SEARCH(\"*Other*\",D120)),IF(Tableau2[[#This Row],[Does it cover basic nutrition ?]]=\"Yes\",\"Further evaluation by FAMI-QS\",IF(Tableau2[[#This Row],[Does it cover basic nutrition ?]]=\"No\",\"Accepted\",orange)),IF(Tableau2[[#This Row],[Does it cover basic nutrition ?]]=\"Yes\",\"Further evaluation by FAMI-QS\",IF(Tableau2[[#This Row],[Does it cover basic nutrition ?]]=\"No\",\"Further evaluation by FAMIQS\",orange))))","v":"Please complete the cells in orange"}]
[null,null,null,null,null,"Please complete the cells in orange","",{"$f":"IF(Tableau2[[#This Row],[orange]]=orange,orange,IF(ISERROR(SEARCH(\"*Other*\",D121)),IF(Tableau2[[#This Row],[Does it cover basic nutrition ?]]=\"Yes\",\"Further evaluation by FAMI-QS\",IF(Tableau2[[#This Row],[Does it cover basic nutrition ?]]=\"No\",\"Accepted\",orange)),IF(Tableau2[[#This Row],[Does it cover basic nutrition ?]]=\"Yes\",\"Further evaluation by FAMI-QS\",IF(Tableau2[[#This Row],[Does it cover basic nutrition ?]]=\"No\",\"Further evaluation by FAMIQS\",orange))))","v":"Please complete the cells in orange"}]
[null,null,null,null,null,"Please complete the cells in orange","",{"$f":"IF(Tableau2[[#This Row],[orange]]=orange,orange,IF(ISERROR(SEARCH(\"*Other*\",D122)),IF(Tableau2[[#This Row],[Does it cover basic nutrition ?]]=\"Yes\",\"Further evaluation by FAMI-QS\",IF(Tableau2[[#This Row],[Does it cover basic nutrition ?]]=\"No\",\"Accepted\",orange)),IF(Tableau2[[#This Row],[Does it cover basic nutrition ?]]=\"Yes\",\"Further evaluation by FAMI-QS\",IF(Tableau2[[#This Row],[Does it cover basic nutrition ?]]=\"No\",\"Further evaluation by FAMIQS\",orange))))","v":"Please complete the cells in orange"}]
[null,null,null,null,null,"Please complete the cells in orange","",{"$f":"IF(Tableau2[[#This Row],[orange]]=orange,orange,IF(ISERROR(SEARCH(\"*Other*\",D123)),IF(Tableau2[[#This Row],[Does it cover basic nutrition ?]]=\"Yes\",\"Further evaluation by FAMI-QS\",IF(Tableau2[[#This Row],[Does it cover basic nutrition ?]]=\"No\",\"Accepted\",orange)),IF(Tableau2[[#This Row],[Does it cover basic nutrition ?]]=\"Yes\",\"Further evaluation by FAMI-QS\",IF(Tableau2[[#This Row],[Does it cover basic nutrition ?]]=\"No\",\"Further evaluation by FAMIQS\",orange))))","v":"Please complete the cells in orange"}]
[null,null,null,null,null,"Please complete the cells in orange","",{"$f":"IF(Tableau2[[#This Row],[orange]]=orange,orange,IF(ISERROR(SEARCH(\"*Other*\",D124)),IF(Tableau2[[#This Row],[Does it cover basic nutrition ?]]=\"Yes\",\"Further evaluation by FAMI-QS\",IF(Tableau2[[#This Row],[Does it cover basic nutrition ?]]=\"No\",\"Accepted\",orange)),IF(Tableau2[[#This Row],[Does it cover basic nutrition ?]]=\"Yes\",\"Further evaluation by FAMI-QS\",IF(Tableau2[[#This Row],[Does it cover basic nutrition ?]]=\"No\",\"Further evaluation by FAMIQS\",orange))))","v":"Please complete the cells in orange"}]
[null,null,null,null,null,"Please complete the cells in orange","",{"$f":"IF(Tableau2[[#This Row],[orange]]=orange,orange,IF(ISERROR(SEARCH(\"*Other*\",D125)),IF(Tableau2[[#This Row],[Does it cover basic nutrition ?]]=\"Yes\",\"Further evaluation by FAMI-QS\",IF(Tableau2[[#This Row],[Does it cover basic nutrition ?]]=\"No\",\"Accepted\",orange)),IF(Tableau2[[#This Row],[Does it cover basic nutrition ?]]=\"Yes\",\"Further evaluation by FAMI-QS\",IF(Tableau2[[#This Row],[Does it cover basic nutrition ?]]=\"No\",\"Further evaluation by FAMIQS\",orange))))","v":"Please complete the cells in orange"}]
[null,null,null,null,null,"Please complete the cells in orange","",{"$f":"IF(Tableau2[[#This Row],[orange]]=orange,orange,IF(ISERROR(SEARCH(\"*Other*\",D126)),IF(Tableau2[[#This Row],[Does it cover basic nutrition ?]]=\"Yes\",\"Further evaluation by FAMI-QS\",IF(Tableau2[[#This Row],[Does it cover basic nutrition ?]]=\"No\",\"Accepted\",orange)),IF(Tableau2[[#This Row],[Does it cover basic nutrition ?]]=\"Yes\",\"Further evaluation by FAMI-QS\",IF(Tableau2[[#This Row],[Does it cover basic nutrition ?]]=\"No\",\"Further evaluation by FAMIQS\",orange))))","v":"Please complete the cells in orange"}]
[null,null,null,null,null,"Please complete the cells in orange","",{"$f":"IF(Tableau2[[#This Row],[orange]]=orange,orange,IF(ISERROR(SEARCH(\"*Other*\",D127)),IF(Tableau2[[#This Row],[Does it cover basic nutrition ?]]=\"Yes\",\"Further evaluation by FAMI-QS\",IF(Tableau2[[#This Row],[Does it cover basic nutrition ?]]=\"No\",\"Accepted\",orange)),IF(Tableau2[[#This Row],[Does it cover basic nutrition ?]]=\"Yes\",\"Further evaluation by FAMI-QS\",IF(Tableau2[[#This Row],[Does it cover basic nutrition ?]]=\"No\",\"Further evaluation by FAMIQS\",orange))))","v":"Please complete the cells in orange"}]
[null,null,null,null,null,"Please complete the cells in orange","",{"$f":"IF(Tableau2[[#This Row],[orange]]=orange,orange,IF(ISERROR(SEARCH(\"*Other*\",D128)),IF(Tableau2[[#This Row],[Does it cover basic nutrition ?]]=\"Yes\",\"Further evaluation by FAMI-QS\",IF(Tableau2[[#This Row],[Does it cover basic nutrition ?]]=\"No\",\"Accepted\",orange)),IF(Tableau2[[#This Row],[Does it cover basic nutrition ?]]=\"Yes\",\"Further evaluation by FAMI-QS\",IF(Tableau2[[#This Row],[Does it cover basic nutrition ?]]=\"No\",\"Further evaluation by FAMIQS\",orange))))","v":"Please complete the cells in orange"}]
[null,null,null,null,null,"Please complete the cells in orange","",{"$f":"IF(Tableau2[[#This Row],[orange]]=orange,orange,IF(ISERROR(SEARCH(\"*Other*\",D129)),IF(Tableau2[[#This Row],[Does it cover basic nutrition ?]]=\"Yes\",\"Further evaluation by FAMI-QS\",IF(Tableau2[[#This Row],[Does it cover basic nutrition ?]]=\"No\",\"Accepted\",orange)),IF(Tableau2[[#This Row],[Does it cover basic nutrition ?]]=\"Yes\",\"Further evaluation by FAMI-QS\",IF(Tableau2[[#This Row],[Does it cover basic nutrition ?]]=\"No\",\"Further evaluation by FAMIQS\",orange))))","v":"Please complete the cells in orange"}]
[null,null,null,null,null,"Please complete the cells in orange","",{"$f":"IF(Tableau2[[#This Row],[orange]]=orange,orange,IF(ISERROR(SEARCH(\"*Other*\",D130)),IF(Tableau2[[#This Row],[Does it cover basic nutrition ?]]=\"Yes\",\"Further evaluation by FAMI-QS\",IF(Tableau2[[#This Row],[Does it cover basic nutrition ?]]=\"No\",\"Accepted\",orange)),IF(Tableau2[[#This Row],[Does it cover basic nutrition ?]]=\"Yes\",\"Further evaluation by FAMI-QS\",IF(Tableau2[[#This Row],[Does it cover basic nutrition ?]]=\"No\",\"Further evaluation by FAMIQS\",orange))))","v":"Please complete the cells in orange"}]
[null,null,null,null,null,{"$f":"IF(OR(COUNTIF(B131,\"\"),COUNTIF(A131,\"\"),COUNTIF(C131,\"\"),COUNTIF(D131,\"\"),COUNTIF(E131,\"\")),\"Please complete the cells in orange\",\"\")","v":"Please complete the cells in orange"},"",{"$f":"IF(Tableau2[[#This Row],[orange]]=orange,orange,IF(ISERROR(SEARCH(\"*Other*\",D131)),IF(Tableau2[[#This Row],[Does it cover basic nutrition ?]]=\"Yes\",\"Further evaluation by FAMI-QS\",IF(Tableau2[[#This Row],[Does it cover basic nutrition ?]]=\"No\",\"Accepted\",orange)),IF(Tableau2[[#This Row],[Does it cover basic nutrition ?]]=\"Yes\",\"Further evaluation by FAMI-QS\",IF(Tableau2[[#This Row],[Does it cover basic nutrition ?]]=\"No\",\"Further evaluation by FAMIQS\",orange))))","v":"Please complete the cells in orange"}]
[null,null,null,null,null,"Please complete the cells in orange","",{"$f":"IF(Tableau2[[#This Row],[orange]]=orange,orange,IF(ISERROR(SEARCH(\"*Other*\",D132)),IF(Tableau2[[#This Row],[Does it cover basic nutrition ?]]=\"Yes\",\"Further evaluation by FAMI-QS\",IF(Tableau2[[#This Row],[Does it cover basic nutrition ?]]=\"No\",\"Accepted\",orange)),IF(Tableau2[[#This Row],[Does it cover basic nutrition ?]]=\"Yes\",\"Further evaluation by FAMI-QS\",IF(Tableau2[[#This Row],[Does it cover basic nutrition ?]]=\"No\",\"Further evaluation by FAMIQS\",orange))))","v":"Please complete the cells in orange"}]

{"sheet":"Mixtures","index":3,"n_rows":131,"n_cols":15,"rows_kept":131,"cut":false,"hidden":false,"merged":[[0,1,0,14]]}
[null,"TABLE TO BE COMPLETED ONLY FOR MIXTURES"]
["Site number","Mixture category","Activity","Is it sufficient as a daily ration?","Mixture is intended for direct feeding the animals ?","Is it intended in combination with other feed?","Mixtures functionality","A;B;C;D","E;G","F;G","other mixt","E color","F color","G color","FAMI-QS conclusion"]
[null,null,null,null,null,null,null,{"$f":"IF(OR(COUNTIF(B3,\"\")*COUNTIF(A3,\"\"),COUNTIF(C3,\"\"),COUNTIF(D3,\"\")),orange,\"\")","v":"Please complete the cells in orange"},{"$f":"IF(OR(COUNTIF(E3,\"\"),COUNTIF(G3,\"\")),orange,\"\")","v":"Please complete the cells in orange"},{"$f":"IF(OR(COUNTIF(F3,\"\"),COUNTIF(G3,\"\")),orange,\"\")","v":"Please complete the cells in orange"},{"$f":"IF(ISERROR(SEARCH(\"*Other*\",G3)),\"\",\"send\")","v":""},{"$f":"IF($D3=\"Yes\",\"grise\",IF($D3=\"Non\",IF(E3=\"\",\"orange\",\"blanc\"),IF(E3=\"\",\"orange\",\"blanc\")))","v":"orange"},{"$f":"IF(D3=\"Yes\",\"grise\",IF(AND(COUNTIF(E3,\"Yes\"),COUNTIF(F3,\"\")),\"vide\",IF(AND(COUNTIF(E3,\"No\"),COUNTIF(F3,\"\")),\"grise\",IF(OR(COUNTIF(F3,\"Yes\"),COUNTIF(F3,\"No\")),\"blanc\",\"vide\"))))","v":"vide"},{"$f":"IF(D3=\"Yes\",\"grise\",IF(F3=\"No\",\"blanc\",IF(G3=\"\",\"orange\",IF(K3=\"send\",\"red\",\"blanc\"))))","v":"orange"},{"$f":"IF(H3=orange,orange,IF(D3=\"Yes\",\"Refused\",IF(D3=\"No\",IF(E3=\"No\",IF(I3=orange,orange,IF(K3=\"send\",\"Accepted\",\"Accepted\")),IF(F3=\"\",orange,IF(F3=\"No\",\"Refused\",IF(J3=orange,orange,IF(K3=\"send\",\"Accepted\",\"Accepted\"))))))))","v":"Please complete the cells in orange"}]
[null,null,null,null,null,null,null,"Please complete the cells in orange","Please complete the cells in orange","Please complete the cells in orange","",{"$f":"IF(D4=\"Yes\",\"grise\",IF(D4=\"Non\",IF(E4=\"\",\"orange\",\"blanc\"),IF(E4=\"\",\"orange\",\"blanc\")))","v":"orange"},"vide","orange","Please complete the cells in orange"]
[null,null,null,null,null,null,null,"Please complete the cells in orange","Please complete the cells in orange","Please complete the cells in orange","","orange","vide","orange","Please complete the cells in orange"]
[null,null,null,null,null,null,null,"Please complete the cells in orange","Please complete the cells in orange","Please complete the cells in orange","","orange","vide","orange","Please complete the cells in orange"]
[null,null,null,null,null,null,null,"Please complete the cells in orange","Please complete the cells in orange","Please complete the cells in orange","","orange","vide","orange","Please complete the cells in orange"]
[null,null,null,null,null,null,null,"Please complete the cells in orange","Please complete the cells in orange","Please complete the cells in orange","","orange","vide","orange","Please complete the cells in orange"]
[null,null,null,null,null,null,null,"Please complete the cells in orange","Please complete the cells in orange","Please complete the cells in orange","","orange","vide","orange","Please complete the cells in orange"]
[null,null,null,null,null,null,null,"Please complete the cells in orange","Please complete the cells in orange","Please complete the cells in orange","","orange","vide","orange","Please complete the cells in orange"]
[null,null,null,null,null,null,null,"Please complete the cells in orange","Please complete the cells in orange","Please complete the cells in orange","","orange","vide","orange","Please complete the cells in orange"]
[null,null,null,null,null,null,null,"Please complete the cells in orange","Please complete the cells in orange","Please complete the cells in orange","","orange","vide","orange","Please complete the cells in orange"]
[null,null,null,null,null,null,null,"Please complete the cells in orange","Please complete the cells in orange","Please complete the cells in orange","","orange","vide","orange","Please complete the cells in orange"]
[null,null,null,null,null,null,null,"Please complete the cells in orange","Please complete the cells in orange","Please complete the cells in orange","","orange","vide","orange","Please complete the cells in orange"]
[null,null,null,null,null,null,null,"Please complete the cells in orange","Please complete the cells in orange","Please complete the cells in orange","","orange","vide","orange","Please complete the cells in orange"]
[null,null,null,null,null,null,null,"Please complete the cells in orange","Please complete the cells in orange","Please complete the cells in orange","","orange","vide","orange","Please complete the cells in orange"]
[null,null,null,null,null,null,null,"Please complete the cells in orange","Please complete the cells in orange","Please complete the cells in orange","","orange","vide","orange","Please complete the cells in orange"]
[null,null,null,null,null,null,null,"Please complete the cells in orange","Please complete the cells in orange","Please complete the cells in orange","","orange","vide","orange","Please complete the cells in orange"]
[null,null,null,null,null,null,null,"Please complete the cells in orange","Please complete the cells in orange","Please complete the cells in orange","","orange","vide","orange","Please complete the cells in orange"]
[null,null,null,null,null,null,null,"Please complete the cells in orange","Please complete the cells in orange","Please complete the cells in orange","","orange","vide","orange","Please complete the cells in orange"]
[null,null,null,null,null,null,null,"Please complete the cells in orange","Please complete the cells in orange","Please complete the cells in orange","","orange","vide","orange","Please complete the cells in orange"]
[null,null,null,null,null,null,null,"Please complete the cells in orange","Please complete the cells in orange","Please complete the cells in orange","","orange","vide","orange","Please complete the cells in orange"]
[null,null,null,null,null,null,null,"Please complete the cells in orange","Please complete the cells in orange","Please complete the cells in orange","","orange","vide","orange","Please complete the cells in orange"]
[null,null,null,null,null,null,null,"Please complete the cells in orange","Please complete the cells in orange","Please complete the cells in orange","","orange","vide","orange","Please complete the cells in orange"]
[null,null,null,null,null,null,null,"Please complete the cells in orange","Please complete the cells in orange","Please complete the cells in orange","","orange","vide","orange","Please complete the cells in orange"]
[null,null,null,null,null,null,null,"Please complete the cells in orange","Please complete the cells in orange","Please complete the cells in orange","","orange","vide","orange","Please complete the cells in orange"]
[null,null,null,null,null,null,null,"Please complete the cells in orange","Please complete the cells in orange","Please complete the cells in orange","","orange","vide","orange","Please complete the cells in orange"]
[null,null,null,null,null,null,null,"Please complete the cells in orange","Please complete the cells in orange","Please complete the cells in orange","","orange","vide","orange","Please complete the cells in orange"]
[null,null,null,null,null,null,null,"Please complete the cells in orange","Please complete the cells in orange","Please complete the cells in orange","","orange","vide","orange","Please complete the cells in orange"]
[null,null,null,null,null,null,null,"Please complete the cells in orange","Please complete the cells in orange","Please complete the cells in orange","","orange","vide","orange","Please complete the cells in orange"]
[null,null,null,null,null,null,null,"Please complete the cells in orange","Please complete the cells in orange","Please complete the cells in orange","","orange","vide","orange","Please complete the cells in orange"]
[null,null,null,null,null,null,null,"Please complete the cells in orange","Please complete the cells in orange","Please complete the cells in orange","","orange","vide","orange","Please complete the cells in orange"]
[null,null,null,null,null,null,null,"Please complete the cells in orange","Please complete the cells in orange","Please complete the cells in orange","","orange","vide","orange","Please complete the cells in orange"]
[null,null,null,null,null,null,null,"Please complete the cells in orange","Please complete the cells in orange","Please complete the cells in orange","","orange","vide","orange","Please complete the cells in orange"]
[null,null,null,null,null,null,null,{"$f":"IF(OR(COUNTIF(B35,\"\")*COUNTIF(A35,\"\"),COUNTIF(C35,\"\"),COUNTIF(D35,\"\")),orange,\"\")","v":"Please complete the cells in orange"},"Please complete the cells in orange","Please complete the cells in orange","","orange","vide",{"$f":"IF(D35=\"Yes\",\"grise\",IF(F35=\"No\",\"blanc\",IF(G35=\"\",\"orange\",IF(K35=\"send\",\"red\",\"blanc\"))))","v":"orange"},{"$f":"IF(H35=orange,orange,IF(D35=\"Yes\",\"Refused\",IF(D35=\"No\",IF(E35=\"No\",IF(I35=orange,orange,IF(K35=\"send\",\"Accepted\",\"Accepted\")),IF(F35=\"\",orange,IF(F35=\"No\",\"Refused\",IF(J35=orange,orange,IF(K35=\"send\",\"Accepted\",\"Accepted\"))))))))","v":"Please complete the cells in orange"}]
[null,null,null,null,null,null,null,"Please complete the cells in orange","Please complete the cells in orange","Please complete the cells in orange","","orange","vide","orange","Please complete the cells in orange"]
[null,null,null,null,null,null,null,"Please complete the cells in orange","Please complete the cells in orange","Please complete the cells in orange","","orange","vide","orange","Please complete the cells in orange"]
[null,null,null,null,null,null,null,"Please complete the cells in orange","Please complete the cells in orange","Please complete the cells in orange","","orange","vide","orange","Please complete the cells in orange"]
[null,null,null,null,null,null,null,"Please complete the cells in orange","Please complete the cells in orange","Please complete the cells in orange","","orange","vide","orange","Please complete the cells in orange"]
[null,null,null,null,null,null,null,"Please complete the cells in orange","Please complete the cells in orange","Please complete the cells in orange","","orange","vide","orange","Please complete the cells in orange"]
[null,null,null,null,null,null,null,"Please complete the cells in orange","Please complete the cells in orange","Please complete the cells in orange","","orange","vide","orange","Please complete the cells in orange"]
[null,null,null,null,null,null,null,"Please complete the cells in orange","Please complete the cells in orange","Please complete the cells in orange","","orange","vide","orange","Please complete the cells in orange"]
[null,null,null,null,null,null,null,"Please complete the cells in orange","Please complete the cells in orange","Please complete the cells in orange","","orange","vide","orange","Please complete the cells in orange"]
[null,null,null,null,null,null,null,"Please complete the cells in orange",{"$f":"IF(OR(COUNTIF(E44,\"\"),COUNTIF(G44,\"\")),orange,\"\")","v":"Please complete the cells in orange"},{"$f":"IF(OR(COUNTIF(F44,\"\"),COUNTIF(G44,\"\")),orange,\"\")","v":"Please complete the cells in orange"},{"$f":"IF(ISERROR(SEARCH(\"*Other*\",G44)),\"\",\"send\")","v":""},{"$f":"IF(D44=\"Yes\",\"grise\",IF(D44=\"Non\",IF(E44=\"\",\"orange\",\"blanc\"),IF(E44=\"\",\"orange\",\"blanc\")))","v":"orange"},{"$f":"IF(D44=\"Yes\",\"grise\",IF(AND(COUNTIF(E44,\"Yes\"),COUNTIF(F44,\"\")),\"vide\",IF(AND(COUNTIF(E44,\"No\"),COUNTIF(F44,\"\")),\"grise\",IF(OR(COUNTIF(F44,\"Yes\"),COUNTIF(F44,\"No\")),\"blanc\",\"vide\"))))","v":"vide"},"orange","Please complete the cells in orange"]
[null,null,null,null,null,null,null,"Please complete the cells in orange","Please complete the cells in orange","Please complete the cells in orange","","orange","vide","orange","Please complete the cells in orange"]
[null,null,null,null,null,null,null,"Please complete the cells in orange","Please complete the cells in orange","Please complete the cells in orange","","orange","vide","orange","Please complete the cells in orange"]
[null,null,null,null,null,null,null,"Please complete the cells in orange","Please complete the cells in orange","Please complete the cells in orange","","orange","vide","orange","Please complete the cells in orange"]
[null,null,null,null,null,null,null,"Please complete the cells in orange","Please complete the cells in orange","Please complete the cells in orange","","orange","vide","orange","Please complete the cells in orange"]
[null,null,null,null,null,null,null,"Please complete the cells in orange","Please complete the cells in orange","Please complete the cells in orange","","orange","vide","orange","Please complete the cells in orange"]
[null,null,null,null,null,null,null,"Please complete the cells in orange","Please complete the cells in orange","Please complete the cells in orange","","orange","vide","orange","Please complete the cells in orange"]
[null,null,null,null,null,null,null,"Please complete the cells in orange","Please complete the cells in orange","Please complete the cells in orange","","orange","vide","orange","Please complete the cells in orange"]
[null,null,null,null,null,null,null,"Please complete the cells in orange","Please complete the cells in orange","Please complete the cells in orange","","orange","vide","orange","Please complete the cells in orange"]
[null,null,null,null,null,null,null,"Please complete the cells in orange","Please complete the cells in orange","Please complete the cells in orange","","orange","vide","orange","Please complete the cells in orange"]
[null,null,null,null,null,null,null,"Please complete the cells in orange","Please complete the cells in orange","Please complete the cells in orange","","orange","vide","orange","Please complete the cells in orange"]
[null,null,null,null,null,null,null,"Please complete the cells in orange","Please complete the cells in orange","Please complete the cells in orange","","orange","vide","orange","Please complete the cells in orange"]
[null,null,null,null,null,null,null,"Please complete the cells in orange","Please complete the cells in orange","Please complete the cells in orange","","orange","vide","orange","Please complete the cells in orange"]
[null,null,null,null,null,null,null,"Please complete the cells in orange","Please complete the cells in orange","Please complete the cells in orange","","orange","vide","orange","Please complete the cells in orange"]
[null,null,null,null,null,null,null,"Please complete the cells in orange","Please complete the cells in orange","Please complete the cells in orange","","orange","vide","orange","Please complete the cells in orange"]
[null,null,null,null,null,null,null,"Please complete the cells in orange","Please complete the cells in orange","Please complete the cells in orange","","orange","vide","orange","Please complete the cells in orange"]
[null,null,null,null,null,null,null,"Please complete the cells in orange","Please complete the cells in orange","Please complete the cells in orange","","orange","vide","orange","Please complete the cells in orange"]
[null,null,null,null,null,null,null,"Please complete the cells in orange","Please complete the cells in orange","Please complete the cells in orange","","orange","vide","orange","Please complete the cells in orange"]
[null,null,null,null,null,null,null,"Please complete the cells in orange","Please complete the cells in orange","Please complete the cells in orange","","orange","vide","orange","Please complete the cells in orange"]
[null,null,null,null,null,null,null,"Please complete the cells in orange","Please complete the cells in orange","Please complete the cells in orange","","orange","vide","orange","Please complete the cells in orange"]
[null,null,null,null,null,null,null,"Please complete the cells in orange","Please complete the cells in orange","Please complete the cells in orange","","orange","vide","orange","Please complete the cells in orange"]
[null,null,null,null,null,null,null,"Please complete the cells in orange","Please complete the cells in orange","Please complete the cells in orange","","orange","vide","orange","Please complete the cells in orange"]
[null,null,null,null,null,null,null,"Please complete the cells in orange","Please complete the cells in orange","Please complete the cells in orange","","orange","vide","orange","Please complete the cells in orange"]
[null,null,null,null,null,null,null,{"$f":"IF(OR(COUNTIF(B67,\"\")*COUNTIF(A67,\"\"),COUNTIF(C67,\"\"),COUNTIF(D67,\"\")),orange,\"\")","v":"Please complete the cells in orange"},"Please complete the cells in orange","Please complete the cells in orange","","orange","vide",{"$f":"IF(D67=\"Yes\",\"grise\",IF(F67=\"No\",\"blanc\",IF(G67=\"\",\"orange\",IF(K67=\"send\",\"red\",\"blanc\"))))","v":"orange"},{"$f":"IF(H67=orange,orange,IF(D67=\"Yes\",\"Refused\",IF(D67=\"No\",IF(E67=\"No\",IF(I67=orange,orange,IF(K67=\"send\",\"Accepted\",\"Accepted\")),IF(F67=\"\",orange,IF(F67=\"No\",\"Refused\",IF(J67=orange,orange,IF(K67=\"send\",\"Accepted\",\"Accepted\"))))))))","v":"Please complete the cells in orange"}]
[null,null,null,null,null,null,null,"Please complete the cells in orange","Please complete the cells in orange","Please complete the cells in orange","","orange","vide","orange","Please complete the cells in orange"]
[null,null,null,null,null,null,null,"Please complete the cells in orange","Please complete the cells in orange","Please complete the cells in orange","","orange","vide","orange","Please complete the cells in orange"]
[null,null,null,null,null,null,null,"Please complete the cells in orange","Please complete the cells in orange","Please complete the cells in orange","","orange","vide","orange","Please complete the cells in orange"]
[null,null,null,null,null,null,null,"Please complete the cells in orange","Please complete the cells in orange","Please complete the cells in orange","","orange","vide","orange","Please complete the cells in orange"]
[null,null,null,null,null,null,null,"Please complete the cells in orange","Please complete the cells in orange","Please complete the cells in orange","","orange","vide","orange","Please complete the cells in orange"]
[null,null,null,null,null,null,null,"Please complete the cells in orange","Please complete the cells in orange","Please complete the cells in orange","","orange","vide","orange","Please complete the cells in orange"]
[null,null,null,null,null,null,null,"Please complete the cells in orange","Please complete the cells in orange","Please complete the cells in orange","","orange","vide","orange","Please complete the cells in orange"]
[null,null,null,null,null,null,null,"Please complete the cells in orange","Please complete the cells in orange","Please complete the cells in orange","","orange","vide","orange","Please complete the cells in orange"]
[null,null,null,null,null,null,null,"Please complete the cells in orange","Please complete the cells in orange","Please complete the cells in orange","","orange","vide","orange","Please complete the cells in orange"]
[null,null,null,null,null,null,null,"Please complete the cells in orange","Please complete the cells in orange","Please complete the cells in orange","","orange","vide","orange","Please complete the cells in orange"]
[null,null,null,null,null,null,null,"Please complete the cells in orange","Please complete the cells in orange","Please complete the cells in orange","","orange","vide","orange","Please complete the cells in orange"]
[null,null,null,null,null,null,null,"Please complete the cells in orange","Please complete the cells in orange","Please complete the cells in orange","","orange","vide","orange","Please complete the cells in orange"]
[null,null,null,null,null,null,null,"Please complete the cells in orange","Please complete the cells in orange","Please complete the cells in orange","","orange","vide","orange","Please complete the cells in orange"]
[null,null,null,null,null,null,null,"Please complete the cells in orange","Please complete the cells in orange","Please complete the cells in orange","","orange","vide","orange","Please complete the cells in orange"]
[null,null,null,null,null,null,null,"Please complete the cells in orange","Please complete the cells in orange","Please complete the cells in orange","","orange","vide","orange","Please complete the cells in orange"]
[null,null,null,null,null,null,null,"Please complete the cells in orange","Please complete the cells in orange","Please complete the cells in orange","","orange","vide","orange","Please complete the cells in orange"]
[null,null,null,null,null,null,null,"Please complete the cells in orange","Please complete the cells in orange","Please complete the cells in orange","","orange","vide","orange","Please complete the cells in orange"]
[null,null,null,null,null,null,null,"Please complete the cells in orange","Please complete the cells in orange","Please complete the cells in orange","","orange","vide","orange","Please complete the cells in orange"]
[null,null,null,null,null,null,null,"Please complete the cells in orange","Please complete the cells in orange","Please complete the cells in orange","","orange","vide","orange","Please complete the cells in orange"]
[null,null,null,null,null,null,null,"Please complete the cells in orange","Please complete the cells in orange","Please complete the cells in orange","","orange","vide","orange","Please complete the cells in orange"]
[null,null,null,null,null,null,null,"Please complete the cells in orange","Please complete the cells in orange","Please complete the cells in orange","","orange","vide","orange","Please complete the cells in orange"]
[null,null,null,null,null,null,null,"Please complete the cells in orange","Please complete the cells in orange","Please complete the cells in orange","","orange","vide","orange","Please complete the cells in orange"]
[null,null,null,null,null,null,null,"Please complete the cells in orange","Please complete the cells in orange","Please complete the cells in orange","","orange","vide","orange","Please complete the cells in orange"]
[null,null,null,null,null,null,null,"Please complete the cells in orange","Please complete the cells in orange","Please complete the cells in orange","","orange","vide","orange","Please complete the cells in orange"]
[null,null,null,null,null,null,null,"Please complete the cells in orange","Please complete the cells in orange","Please complete the cells in orange","","orange","vide","orange","Please complete the cells in orange"]
[null,null,null,null,null,null,null,"Please complete the cells in orange","Please complete the cells in orange","Please complete the cells in orange","","orange","vide","orange","Please complete the cells in orange"]
[null,null,null,null,null,null,null,"Please complete the cells in orange","Please complete the cells in orange","Please complete the cells in orange","","orange","vide","orange","Please complete the cells in orange"]
[null,null,null,null,null,null,null,"Please complete the cells in orange","Please complete the cells in orange","Please complete the cells in orange","","orange","vide","orange","Please complete the cells in orange"]
[null,null,null,null,null,null,null,"Please complete the cells in orange","Please complete the cells in orange","Please complete the cells in orange","","orange","vide","orange","Please complete the cells in orange"]
[null,null,null,null,null,null,null,"Please complete the cells in orange","Please complete the cells in orange","Please complete the cells in orange","","orange","vide","orange","Please complete the cells in orange"]
[null,null,null,null,null,null,null,"Please complete the cells in orange","Please complete the cells in orange","Please complete the cells in orange","","orange","vide","orange","Please complete the cells in orange"]
[null,null,null,null,null,null,null,{"$f":"IF(OR(COUNTIF(B99,\"\")*COUNTIF(A99,\"\"),COUNTIF(C99,\"\"),COUNTIF(D99,\"\")),orange,\"\")","v":"Please complete the cells in orange"},"Please complete the cells in orange","Please complete the cells in orange","","orange","vide",{"$f":"IF(D99=\"Yes\",\"grise\",IF(F99=\"No\",\"blanc\",IF(G99=\"\",\"orange\",IF(K99=\"send\",\"red\",\"blanc\"))))","v":"orange"},{"$f":"IF(H99=orange,orange,IF(D99=\"Yes\",\"Refused\",IF(D99=\"No\",IF(E99=\"No\",IF(I99=orange,orange,IF(K99=\"send\",\"Accepted\",\"Accepted\")),IF(F99=\"\",orange,IF(F99=\"No\",\"Refused\",IF(J99=orange,orange,IF(K99=\"send\",\"Accepted\",\"Accepted\"))))))))","v":"Please complete the cells in orange"}]
[null,null,null,null,null,null,null,"Please complete the cells in orange","Please complete the cells in orange","Please complete the cells in orange","","orange","vide","orange","Please complete the cells in orange"]
[null,null,null,null,null,null,null,"Please complete the cells in orange","Please complete the cells in orange","Please complete the cells in orange","","orange","vide","orange","Please complete the cells in orange"]
[null,null,null,null,null,null,null,"Please complete the cells in orange","Please complete the cells in orange","Please complete the cells in orange","","orange","vide","orange","Please complete the cells in orange"]
[null,null,null,null,null,null,null,"Please complete the cells in orange","Please complete the cells in orange","Please complete the cells in orange","","orange","vide","orange","Please complete the cells in orange"]
[null,null,null,null,null,null,null,"Please complete the cells in orange","Please complete the cells in orange","Please complete the cells in orange","","orange","vide","orange","Please complete the cells in orange"]
[null,null,null,null,null,null,null,"Please complete the cells in orange","Please complete the cells in orange","Please complete the cells in orange","","orange","vide","orange","Please complete the cells in orange"]
[null,null,null,null,null,null,null,"Please complete the cells in orange","Please complete the cells in orange","Please complete the cells in orange","","orange","vide","orange","Please complete the cells in orange"]
[null,null,null,null,null,null,null,"Please complete the cells in orange","Please complete the cells in orange","Please complete the cells in orange","","orange","vide","orange","Please complete the cells in orange"]
[null,null,null,null,null,null,null,"Please complete the cells in orange",{"$f":"IF(OR(COUNTIF(E108,\"\"),COUNTIF(G108,\"\")),orange,\"\")","v":"Please complete the cells in orange"},{"$f":"IF(OR(COUNTIF(F108,\"\"),COUNTIF(G108,\"\")),orange,\"\")","v":"Please complete the cells in orange"},{"$f":"IF(ISERROR(SEARCH(\"*Other*\",G108)),\"\",\"send\")","v":""},{"$f":"IF(D108=\"Yes\",\"grise\",IF(D108=\"Non\",IF(E108=\"\",\"orange\",\"blanc\"),IF(E108=\"\",\"orange\",\"blanc\")))","v":"orange"},{"$f":"IF(D108=\"Yes\",\"grise\",IF(AND(COUNTIF(E108,\"Yes\"),COUNTIF(F108,\"\")),\"vide\",IF(AND(COUNTIF(E108,\"No\"),COUNTIF(F108,\"\")),\"grise\",IF(OR(COUNTIF(F108,\"Yes\"),COUNTIF(F108,\"No\")),\"blanc\",\"vide\"))))","v":"vide"},"orange","Please complete the cells in orange"]
[null,null,null,null,null,null,null,"Please complete the cells in orange","Please complete the cells in orange","Please complete the cells in orange","","orange","vide","orange","Please complete the cells in orange"]
[null,null,null,null,null,null,null,"Please complete the cells in orange","Please complete the cells in orange","Please complete the cells in orange","","orange","vide","orange","Please complete the cells in orange"]
[null,null,null,null,null,null,null,"Please complete the cells in orange","Please complete the cells in orange","Please complete the cells in orange","","orange","vide","orange","Please complete the cells in orange"]
[null,null,null,null,null,null,null,"Please complete the cells in orange","Please complete the cells in orange","Please complete the cells in orange","","orange","vide","orange","Please complete the cells in orange"]
[null,null,null,null,null,null,null,"Please complete the cells in orange","Please complete the cells in orange","Please complete the cells in orange","","orange","vide","orange","Please complete the cells in orange"]
[null,null,null,null,null,null,null,"Please complete the cells in orange","Please complete the cells in orange","Please complete the cells in orange","","orange","vide","orange","Please complete the cells in orange"]
[null,null,null,null,null,null,null,"Please complete the cells in orange","Please complete the cells in orange","Please complete the cells in orange","","orange","vide","orange","Please complete the cells in orange"]
[null,null,null,null,null,null,null,"Please complete the cells in orange","Please complete the cells in orange","Please complete the cells in orange","","orange","vide","orange","Please complete the cells in orange"]
[null,null,null,null,null,null,null,"Please complete the cells in orange","Please complete the cells in orange","Please complete the cells in orange","","orange","vide","orange","Please complete the cells in orange"]
[null,null,null,null,null,null,null,"Please complete the cells in orange","Please complete the cells in orange","Please complete the cells in orange","","orange","vide","orange","Please complete the cells in orange"]
[null,null,null,null,null,null,null,"Please complete the cells in orange","Please complete the cells in orange","Please complete the cells in orange","","orange","vide","orange","Please complete the cells in orange"]
[null,null,null,null,null,null,null,"Please complete the cells in orange","Please complete the cells in orange","Please complete the cells in orange","","orange","vide","orange","Please complete the cells in orange"]
[null,null,null,null,null,null,null,"Please complete the cells in orange","Please complete the cells in orange","Please complete the cells in orange","","orange","vide","orange","Please complete the cells in orange"]
[null,null,null,null,null,null,null,"Please complete the cells in orange","Please complete the cells in orange","Please complete the cells in orange","","orange","vide","orange","Please complete the cells in orange"]
[null,null,null,null,null,null,null,"Please complete the cells in orange","Please complete the cells in orange","Please complete the cells in orange","","orange","vide","orange","Please complete the cells in orange"]
[null,null,null,null,null,null,null,"Please complete the cells in orange","Please complete the cells in orange","Please complete the cells in orange","","orange","vide","orange","Please complete the cells in orange"]
[null,null,null,null,null,null,null,"Please complete the cells in orange","Please complete the cells in orange","Please complete the cells in orange","","orange","vide","orange","Please complete the cells in orange"]
[null,null,null,null,null,null,null,"Please complete the cells in orange","Please complete the cells in orange","Please complete the cells in orange","","orange","vide","orange","Please complete the cells in orange"]
[null,null,null,null,null,null,null,"Please complete the cells in orange","Please complete the cells in orange","Please complete the cells in orange","","orange","vide","orange","Please complete the cells in orange"]
[null,null,null,null,null,null,null,"Please complete the cells in orange","Please complete the cells in orange","Please complete the cells in orange","","orange","vide","orange","Please complete the cells in orange"]
[null,null,null,null,null,null,null,"Please complete the cells in orange","Please complete the cells in orange","Please complete the cells in orange","","orange","vide","orange","Please complete the cells in orange"]
[null,null,null,null,null,null,null,"Please complete the cells in orange","Please complete the cells in orange","Please complete the cells in orange","","orange","vide","orange","Please complete the cells in orange"]
[null,null,null,null,null,null,null,"Please complete the cells in orange","Please complete the cells in orange","Please complete the cells in orange","","orange","vide","orange",{"$f":"IF(H131=orange,orange,IF(D131=\"Yes\",\"Refused\",IF(D131=\"No\",IF(E131=\"No\",IF(I131=orange,orange,IF(K131=\"send\",\"Accepted\",\"Accepted\")),IF(F131=\"\",orange,IF(F131=\"No\",\"Refused\",IF(J131=orange,orange,IF(K131=\"send\",\"Accepted\",\"Accepted\"))))))))","v":"Please complete the cells in orange"}]

{"sheet":"Menu","index":4,"n_rows":248,"n_cols":16,"rows_kept":248,"cut":false,"hidden":false,"merged":[]}
[null,null,"New South Wales","Functions Single Ingredients","Mixtures functionalities",null,null,"Production process",null,"Functionality","Category","Mixture","Complementary","Dietetic"]
["ÅLAND ISLANDS",null,"Victoria","Technological","Support of renal function in case of chronic renal insufficiency ",null,null,"Bioprocess",null,"Technological","Mixture","Technological","Technological","Support of renal function in case of chronic renal insufficiency ",null,"Please complete the cells in orange"]
["ALBANIA",null,"Queensland","Sensory","Dissolution of struvite stones",null,null,"Chemical",null,"Sensory","Complementary","Sensory","Sensory","Dissolution of struvite stones",null,"Send the specification of not listed functionality by email"]
["ALGERIA",null,"Western Australia","Nutritional","Reduction of struvite stone recurrence",null,null,"Extraction",null,"Nutritional","Dietetic","Nutritional","Nutritional","Reduction of struvite stone recurrence"]
["AMERICAN SAMOA",null,"South Australia","Zootechnical","Reduction of urate stones formation",null,null,"Mining",null,"Zootechnical",null,"Zootechnical","Zootechnical","Reduction of urate stones formation"]
["ANDORRA",null,"Tasmania","Preservatives","Reduction of oxalate stones formation",null,null,"Other",null,"Technological",null,"Other","Other","Reduction of oxalate stones formation"]
["ANGOLA",null,"Alabama","Antioxidants","Reduction of cystine stones formation",null,null,null,null,"Sensory",null,null,null,"Reduction of cystine stones formation"]
["ANGUILLA",null,"Alaska","Emulsifiers","Reduction of ingredient and nutrient intolerances",null,null,null,null,"Nutritional",null,null,null,"Reduction of ingredient and nutrient intolerances"]
["ANTARCTICA",null,"Arizona","Stabilisers","Reduction of acute intestinal absorpitive disorders",null,null,null,null,"Zootechnical",null,null,null,"Reduction of acute intestinal absorpitive disorders"]
["ANTIGUA AND BARBUDA",null,"Arkansas","Thickeners","Compensation for maldigestion",null,null,null,null,"Preservatives",null,null,null,"Compensation for maldigestion"]
["ARGENTINA",null,"California","Gellin agents","Support of heart function in the case of chronic cardiac insufficiency",null,null,null,null,"Antioxidants",null,null,null,"Support of heart function in the case of chronic cardiac insufficiency"]
["ARMENIA",null,"Colorado","Binders","Regulation of glucose supply (Diabetes mellitus)",null,null,null,null,"Emulsifiers",null,null,null,"Regulation of glucose supply (Diabetes mellitus)"]
["ARUBA",null,"Connecticut","Substances for control of radionucleide contamination","Support of liver function in the case of chronic liver insufficiency",null,null,null,null,"Stabilisers",null,null,null,"Support of liver function in the case of chronic liver insufficiency"]
["AUSTRALIA",null,"Delaware","Anticaking agents","Regulation of lipid metabolism in the case of hyperlipidaemi",null,null,null,null,"Thickeners",null,null,null,"Regulation of lipid metabolism in the case of hyperlipidaemi"]
["AUSTRIA",null,"District of Columbia","Acidity regulators","Reduction of iodine levels in feed in case of hyoerthyroidim",null,null,null,null,"Gellin agents",null,null,null,"Reduction of iodine levels in feed in case of hyoerthyroidim"]
["AZERBAIJAN",null,"Florida","Silage additives","Reduction of copper in the liver",null,null,null,null,"Binders",null,null,null,"Reduction of copper in the liver"]
["BAHAMASBAHRAIN",null,"Georgia","Denaturants","Reduction of excessive weight",null,null,null,null,"Substances for control of radionucleide contamination",null,null,null,"Reduction of excessive weight"]
["BANGLADESH",null,"Hawaii","Substances for reduction of the contamination of feed by mycotoxins","Nutritional restoration, convalescence",null,null,null,null,"Anticaking agents",null,null,null,"Nutritional restoration, convalescence"]
["BARBADOS",null,"Idaho","Hygiene condition enhancers","Support of skin function in the case of dermatosis and excessive loss of hair",null,null,null,null,"Acidity regulators",null,null,null,"Support of skin function in the case of dermatosis and excessive loss of hair"]
["BELARUS",null,"Illinois","Other technological additives","Support of the metabolism of joints in the case of osteoarthritis",null,null,null,null,"Silage additives",null,null,null,"Support of the metabolism of joints in the case of osteoarthritis"]
["BELGIUM",null,"Indiana","Colourants: substances that add or restore colour in feedingstuffs","Reduction of the risk of milk fever",null,null,null,null,"Denaturants",null,null,null,"Reduction of the risk of milk fever"]
["BELIZE",null,"Iowa","Colourants: substances which, when fed to animals, add colours to food animal origin","Reduction of the risk of ketosis",null,null,null,null,"Substances for reduction of the contamination of feed by mycotoxins",null,null,null,"Reduction of the risk of ketosis"]
["BENIN",null,"Kansas","Colourants:substances which favourably affect the colour of ornamental fish or birds","Reduction of the risk of tetany (hypomagnesaemia)",null,null,null,null,"Hygiene condition enhancers",null,null,null,"Reduction of the risk of tetany (hypomagnesaemia)"]
["BERMUDA",null,"Kentucky","Flavouring compounds","Reduction of the risk of acidosis",null,null,null,null,"Other technological additives",null,null,null,"Reduction of the risk of acidosis"]
["BHUTAN",null,"Louisiana","Vitamins, pro-vitamins and chemically well-defined substances having similar effect","Long-term supply of grazing animals with trace elements and/or vitamins",null,null,null,null,"Colourants: substances that add or restore colour in feedingstuffs",null,null,null,"Long-term supply of grazing animals with trace elements and/or vitamins"]
["BOLIVIA, PLURINATIONAL STATE OF",null,"Maine","Compounds of trace elements","Compensation for insufficient iron availability after birth",null,null,null,null,"Colourants: substances which, when fed to animals, add colours to food animal origin",null,null,null,"Compensation for insufficient iron availability after birth"]
["BONAIRE, SINT EUSTATIUS AND SABA",null,"Maryland","Amino acids, their salts and analogues","Support the regeneration of hooves, trotters and skin",null,null,null,null,"Colourants:substances which favourably affect the colour of ornamental fish or birds",null,null,null,"Support the regeneration of hooves, trotters and skin"]
["BOSNIA AND HERZEGOVINA",null,"Massachusetts","Urea and its derivatives","Support the preparation for oestrus and reproduction",null,null,null,null,"Flavouring compounds",null,null,null,"Support the preparation for oestrus and reproduction"]
["BOTSWANA",null,"Michigan","Digestibility enhancers","Stabilisation of water and electrolyte balance to support the physiological digestion",null,null,null,null,"Vitamins, pro-vitamins and chemically well-defined substances having similar effect",null,null,null,"Stabilisation of water and electrolyte balance to support the physiological digestion"]
["BOUVET ISLAND",null,"Minnesota","Gut flora stabilisers","Reduction of the risk of urinary calculi",null,null,null,null,"Compounds of trace elements",null,null,null,"Reduction of the risk of urinary calculi"]
["BRAZIL",null,"Mississippi","Substances which favourably affect the environment","Reduction of stress reactions",null,null,null,null,"Amino acids, their salts and analogues",null,null,null,"Reduction of stress reactions"]
["BRITISH INDIAN OCEAN TERRITORY",null,"Missouri","Other zootechnical additives","Stabilisation of physiological digestion",null,null,null,null,"Urea and its derivatives",null,null,null,"Stabilisation of physiological digestion"]
["BRUNEI DARUSSALAM",null,"Montana","Physiological condition stabilisers","Reduction of the risk of constipation",null,null,null,null,"Digestibility enhancers",null,null,null,"Reduction of the risk of constipation"]
["BULGARIA",null,"Nebraska","Other","Reduction of the risk of fatty liver syndrome",null,null,null,null,"Gut flora stabilisers",null,null,null,"Reduction of the risk of fatty liver syndrome"]
["BURKINA FASO",null,"Nevada",null,"Compensation for malabsorption",null,null,null,null,"Substances which favourably affect the environment",null,null,null,"Compensation for malabsorption"]
["BURUNDI",null,"New Hampshire",null,"Compensation for chronic insufficiency of small intestine function",null,null,null,null,"Other zootechnical additives",null,null,null,"Compensation for chronic insufficiency of small intestine function"]
["CAMBODIA",null,"New Jersey",null,"Compensation for chronic digestive disorders of large intestine",null,null,null,null,"Physiological condition stabilisers",null,null,null,"Compensation for chronic digestive disorders of large intestine"]
["CAMEROON",null,"New Mexico",null,"Reduction of stress reactions",null,null,null,null,"Other",null,null,null,"Reduction of stress reactions"]
["CANADA",null,"New York",null,"Compensation of electrolyte loss in the cases of heavy sweating",null,null,null,null,null,null,null,null,"Compensation of electrolyte loss in the cases of heavy sweating"]
["CAPE VERDE",null,"North Carolina",null,"Support the preparation for and recovery from sport effort",null,null,null,null,null,null,null,null,"Support the preparation for and recovery from sport effort"]
["CAYMAN ISLANDS",null,"North Dakota",null,"Nutritional restoration, convalescence",null,null,null,null,null,null,null,null,"Nutritional restoration, convalescence"]
["CENTRAL AFRICAN REPUBLIC",null,"Ohio",null,"Support of liver function in the case of chronic liver insufficiency",null,null,null,null,null,null,null,null,"Support of liver function in the case of chronic liver insufficiency"]
["CHAD",null,"Oklahoma",null,"Support of renal function in the case of chronic renal insufficiency",null,null,null,null,null,null,null,null,"Support of renal function in the case of chronic renal insufficiency"]
["CHILE",null,"Oregon",null,"Other",null,null,null,null,null,null,null,null,"Other"]
["CHINA",null,"Pennsylvania"]
["CHRISTMAS ISLAND",null,"Rhode Island"]
["COCOS (KEELING) ISLANDS",null,"South Carolina"]
["COLOMBIA",null,"South Dakota"]
["COMOROS",null,"Tennessee"]
["CONGO",null,"Texas"]
["CONGO, THE DEMOCRATIC REPUBLIC OF THE",null,"Utah"]
["COOK ISLANDS",null,"Vermont"]
["COSTA RICA",null,"Virginia"]
["CÔTE D'IVOIRE",null,"Washington"]
["CROATIA",null,"West Virginia"]
["CUBA",null,"Wisconsin"]
["CURAÇAO",null,"Wyoming"]
["CYPRUS",null,"Anhui Province "]
["CZECH REPUBLIC",null,"Beijing Municipality "]
["DENMARK",null,"Chongqing Municipality"]
["DJIBOUTI",null,"Fujian Province"]
["DOMINICA",null,"Guangdong Province "]
["DOMINICAN REPUBLIC",null,"Gansu Province"]
["ECUADOR",null,"Guangxi Zhuang Autonomous Region "]
["EGYPT",null,"Guizhou Province "]
["EL SALVADOR",null,"Henan Province "]
["EQUATORIAL GUINEA",null,"Hubei Province "]
["ERITREA",null,"Hebei Province "]
["ESTONIA",null,"Hainan Province "]
["ETHIOPIA",null,"Hong Kong Special Administrative Region"]
["FALKLAND ISLANDS (MALVINAS)",null,"Heilongjiang Province "]
["FAROE ISLANDS",null,"Hunan Province "]
["FIJI",null,"Jilin Province "]
["FINLAND",null,"Jiangsu Province "]
["FRANCE",null,"Jiangxi Province "]
["FRENCH GUIANA",null,"Liaoning Province"]
["FRENCH POLYNESIA",null,"Macau Special Administrative Region "]
["FRENCH SOUTHERN TERRITORIES",null,"Inner Mongolia Autonomous Region "]
["GABON",null,"Ningxia Hui Autonomous Region "]
["GAMBIA",null,"Qinghai Province "]
["GEORGIA",null,"Sichuan Province "]
["GERMANY",null,"Shandong Province "]
["GHANA",null,"Shanghai Municipality"]
["GIBRALTAR",null,"Shaanxi Province "]
["GREECE",null,"Shanxi Province "]
["GREENLAND",null,"Tianjin Municipality"]
["GRENADA",null,"Taiwan Province"]
["GUADELOUPE",null,"Xinjiang Uyghur Autonomous Region "]
["GUAM",null,"Tibet Autonomous Region "]
["GUATEMALA",null,"Yunnan Province "]
["GUERNSEY",null,"Zhejiang Province"]
["GUINEA",null,"Ontario"]
["GUINEA-BISSAU",null,"Quebec "]
["GUYANA",null,"Nova Scotia "]
["HAITI",null,"New Brunswick "]
["HEARD ISLAND AND MCDONALD ISLANDS",null,"Manitoba "]
["HOLY SEE (VATICAN CITY STATE)",null,"British Columbia "]
["HONDURAS",null,"Prince Edward Island "]
["HONG KONG",null,"Saskatchewan"]
["HUNGARY",null,"Alberta "]
["ICELAND",null,"Newfoundland and Labrador"]
["INDIA",null,"Andhra Pradesh"]
["INDONESIA",null,"Arunachal Pradesh"]
["IRAN, ISLAMIC REPUBLIC OF",null,"Assam"]
["IRAQ",null,"Bihar"]
["IRELAND",null,"Chhattisgarh"]
["ISLE OF MAN",null,"Goa"]
["ISRAEL",null,"Gujarat"]
["ITALY",null,"Haryana"]
["JAMAICA",null,"Himachal Pradesh"]
["JAPAN",null,"Jharkhand"]
["JERSEY",null,"Karnataka"]
["JORDAN",null,"Kerala"]
["KAZAKHSTAN",null,"Madhya Pradesh"]
["KENYA",null,"Maharashtra"]
["KIRIBATI",null,"Manipur"]
["KOREA, DEMOCRATIC PEOPLE'S REPUBLIC OF",null,"Meghalaya"]
["KOREA, REPUBLIC OF",null,"Mizoram"]
["KUWAIT",null,"Nagaland"]
["KYRGYZSTAN",null,"Odisha"]
["LAO PEOPLE'S DEMOCRATIC REPUBLIC",null,"Punjab"]
["LATVIA",null,"Rajasthan"]
["LEBANON",null,"Sikkim"]
["LESOTHO",null,"Tamil Nadu"]
["LIBERIA",null,"Telangana"]
["LIBYA",null,"Tripura"]
["LIECHTENSTEIN",null,"Uttarakhand"]
["LITHUANIA",null,"Uttar Pradesh"]
["LUXEMBOURG",null,"West Bengal"]
["MACAO"]
["MACEDONIA, THE FORMER YUGOSLAV REPUBLIC OF"]
["MADAGASCAR"]
["MALAWI"]
["MALAYSIA"]
["MALDIVES "]
["MALI "]
["MALTA "]
["MARSHALL ISLANDS"]
["MARTINIQUE"]
["MAURITANIA "]
["MAURITIUS "]
["MAYOTTE"]
["MEXICO"]
["MICRONESIA, FEDERATED STATES OF"]
["MOLDOVA, REPUBLIC OF"]
["MONACO"]
["MONGOLIA"]
["MONTENEGRO"]
["MONTSERRAT"]
["MOROCCO"]
["MOZAMBIQUE"]
["MYANMAR"]
["NAMIBIA"]
["NAURU"]
["NEPAL"]
["NETHERLANDS"]
["NEW CALEDONIA"]
["NEW ZEALAND"]
["NICARAGUA"]
["NIGER"]
["NIGERIA"]
["NIUE"]
["NORFOLK ISLAND"]
["NORTHERN MARIANA ISLANDS"]
["NORWAY"]
["OMAN"]
["PAKISTAN"]
["PALAU"]
["PALESTINIAN TERRITORY, OCCUPIED"]
["PANAMA"]
["PAPUA NEW GUINEA"]
["PARAGUAY"]
["PERU"]
["PHILIPPINES"]
["PITCAIRN"]
["POLAND"]
["PORTUGAL"]
["PUERTO RICO"]
["QATAR"]
["RÉUNION"]
["ROMANIA"]
["RUSSIAN FEDERATION"]
["RWANDA"]
["SAINT BARTHÉLEMY"]
["SAINT HELENA, ASCENSION AND TRISTAN DA CUNHA"]
["SAINT KITTS AND NEVIS"]
["SAINT LUCIA"]
["SAINT MARTIN (FRENCH PART)"]
["SAINT PIERRE AND MIQUELON"]
["SAINT VINCENT AND THE GRENADINES"]
["SAMOA"]
["SAN MARINO"]
["SAO TOME AND PRINCIPE"]
["SAUDI ARABIA"]
["SENEGAL"]
["SERBIA"]
["SEYCHELLES"]
["SIERRA LEONE"]
["SINGAPORE"]
["SINT MAARTEN (DUTCH PART)"]
["SLOVAKIA"]
["SLOVENIA"]
["SOLOMON ISLANDS"]
["SOMALIA"]
["SOUTH AFRICA"]
["SOUTH GEORGIA AND THE SOUTH SANDWICH ISLANDS"]
["SOUTH SUDAN"]
["SPAIN"]
["SRI LANKA"]
["SUDAN"]
["SURINAME"]
["SVALBARD AND JAN MAYEN"]
["SWAZILAND"]
["SWEDEN"]
["SWITZERLAND"]
["SYRIAN ARAB REPUBLIC"]
["TAIWAN, PROVINCE OF CHINA"]
["TAJIKISTAN"]
["TANZANIA, UNITED REPUBLIC OF"]
["THAILAND"]
["TIMOR-LESTE"]
["TOGO"]
["TOKELAU"]
["TONGA"]
["TRINIDAD AND TOBAGO"]
["TUNISIA"]
["TURKEY"]
["TURKMENISTAN"]
["TURKS AND CAICOS ISLANDS"]
["TUVALU"]
["UGANDA"]
["UKRAINE"]
["UNITED ARAB EMIRATES"]
["UNITED KINGDOM"]
["UNITED STATES"]
["UNITED STATES MINOR OUTLYING ISLANDS"]
["URUGUAY"]
["UZBEKISTAN"]
["VANUATU"]
["VENEZUELA, BOLIVARIAN REPUBLIC OF"]
["VIET NAM"]
["VIRGIN ISLANDS, BRITISH"]
["VIRGIN ISLANDS, U.S."]
["WALLIS AND FUTUNA"]
["WESTERN SAHARA"]
["YEMEN"]
["ZAMBIA"]
["ZIMBABWE"]